EXTRACTDATE,PUBLISHERURI,ORGANISATIONLABEL,EXPENSE DATE,VENDOR NAME ,COST CENTRE NAME,SUBJECTIVE DESCRIPTION,REQUESTED EXPENSE AMOUNT
05/09/2023,,LB of Brent,01/06/2023,Tesco Stores 2122,Short Break Centre,Supplies and Services Expenditure,131.30
05/09/2023,,LB of Brent,01/06/2023,Ikea Ltd 141 Wembley Main,Willows Nursery,Supplies and Services Expenditure,100.00
05/09/2023,,LB of Brent,01/06/2023,Intellisoftware Ltd,IT Operations,Information Communication Technology,10.00
05/09/2023,,LB of Brent,01/06/2023,Flickr Pro Monthly,Digital Comms,Supplies and Services Expenditure,6.99
05/09/2023,,LB of Brent,01/06/2023,Amazon.Co.Uk,Customer Access Improvement and Performance,Stationery,115.83
05/09/2023,,LB of Brent,01/06/2023,Companieshouse Web Filing,Legal Support,Legal Services,15.00
05/09/2023,,LB of Brent,01/06/2023,Tesco Stores 6186,Brent Family Solutions,Supplies and Services Expenditure,30.00
05/09/2023,,LB of Brent,02/06/2023,Msft * E0600nl4lm,IT Operations,Supplies and Services Expenditure,5.40
05/09/2023,,LB of Brent,02/06/2023,Bolt.Eu/O/2306020824,Smart Team,Supplies and Services Expenditure,7.70
05/09/2023,,LB of Brent,02/06/2023,Bolt.Eu/O/2306020909,Smart Team,Supplies and Services Expenditure,7.80
05/09/2023,,LB of Brent,02/06/2023,Sainsburys Supermarket,Gordon Brown Outdoor Education Centre,Supplies and Services Expenditure,7.60
05/09/2023,,LB of Brent,02/06/2023,Amznmktplace,Gordon Brown Outdoor Education Centre,Supplies and Services Expenditure,209.97
05/09/2023,,LB of Brent,02/06/2023,Asda Stores Ltd,Fostering Support Team B,Supplies and Services Expenditure,20.00
05/09/2023,,LB of Brent,02/06/2023,Calendly,Brent Music Service,Supplies and Services Expenditure,8.31
05/09/2023,,LB of Brent,02/06/2023,Amazon Prime,Willows Nursery,Supplies and Services Expenditure,7.49
05/09/2023,,LB of Brent,02/06/2023,Tesco Stores 2080,Gordon Brown Outdoor Education Centre,Supplies and Services Expenditure,68.48
05/09/2023,,LB of Brent,04/06/2023,Amznmktplace,Civic Centre Conference and Events,Stationery,33.32
05/09/2023,,LB of Brent,03/06/2023,Scottish Power,NAIL Property Management,Supplies and Services Expenditure,166.67
05/09/2023,,LB of Brent,03/06/2023,Scottish Power,NAIL Property Management,Supplies and Services Expenditure,166.67
05/09/2023,,LB of Brent,05/06/2023,Tesco Stores 2080,Gordon Brown Outdoor Education Centre,Supplies and Services Expenditure,160.15
05/09/2023,,LB of Brent,05/06/2023,Asda Groceries Online,Willows Nursery,Supplies and Services Expenditure,-15.01
05/09/2023,,LB of Brent,05/06/2023,Asda Groceries Online,Willows Nursery,Supplies and Services Expenditure,65.64
05/09/2023,,LB of Brent,05/06/2023,Visme,Wembley Learning Zone,Supplies and Services Expenditure,89.95
05/09/2023,,LB of Brent,05/06/2023,Eb *project Management,Strategy and Partnerships,Financial Services,161.00
05/09/2023,,LB of Brent,05/06/2023,Eb *strategic Thinking,Strategy and Partnerships,Financial Services,161.00
05/09/2023,,LB of Brent,05/06/2023,Posturite Ltd,Customer Access Improvement and Performance,Stationery,"1,753.98"
05/09/2023,,LB of Brent,05/06/2023,Trainline.Com,Housing Needs Housing Options Team,Supplies and Services Expenditure,88.29
05/09/2023,,LB of Brent,05/06/2023,Trainline,West Long-Term Team 2,Supplies and Services Expenditure,72.10
05/09/2023,,LB of Brent,06/06/2023,British Gas Online,NAIL Property Management,Supplies and Services Expenditure,82.50
05/09/2023,,LB of Brent,06/06/2023,British Gas Online,NAIL Property Management,Supplies and Services Expenditure,82.50
05/09/2023,,LB of Brent,06/06/2023,British Gas Online,NAIL Property Management,Supplies and Services Expenditure,82.50
05/09/2023,,LB of Brent,06/06/2023,British Gas Online,NAIL Property Management,Supplies and Services Expenditure,82.50
05/09/2023,,LB of Brent,06/06/2023,Sp Gazebospareparts,Gordon Brown Outdoor Education Centre,Supplies and Services Expenditure,66.48
05/09/2023,,LB of Brent,06/06/2023,Design Print Banner Lt,Gordon Brown Outdoor Education Centre,Supplies and Services Expenditure,"1,506.82"
05/09/2023,,LB of Brent,06/06/2023,Amznmktplace,East Long-Term Team 2,Supplies and Services Expenditure,212.36
05/09/2023,,LB of Brent,06/06/2023,Travelodge Gb0000,Legal Support,Human Resources - Travel and Subsistence - Taxi Fares,67.13
05/09/2023,,LB of Brent,06/06/2023,Lul Ticket Machine,Brent Family Solutions,Supplies and Services Expenditure,285.00
05/09/2023,,LB of Brent,06/06/2023,Lul Ticket Machine,Brent Family Solutions,Supplies and Services Expenditure,285.00
05/09/2023,,LB of Brent,06/06/2023,Lul Ticket Machine,Brent Family Solutions,Supplies and Services Expenditure,285.00
05/09/2023,,LB of Brent,06/06/2023,Lul Ticket Machine,Brent Family Solutions,Supplies and Services Expenditure,285.00
05/09/2023,,LB of Brent,06/06/2023,Trainline.Com,Housing Needs Housing Options Team,Supplies and Services Expenditure,88.29
05/09/2023,,LB of Brent,06/06/2023,Trainline.Com,Housing Needs Housing Options Team,Supplies and Services Expenditure,88.29
05/09/2023,,LB of Brent,06/06/2023,Trainline.Com,Housing Needs Housing Options Team,Supplies and Services Expenditure,88.29
05/09/2023,,LB of Brent,07/06/2023,Amznmktplace,Gordon Brown Outdoor Education Centre,Supplies and Services Expenditure,116.34
05/09/2023,,LB of Brent,07/06/2023,Tesco Stores 2122,Short Break Centre,Supplies and Services Expenditure,125.29
05/09/2023,,LB of Brent,07/06/2023,British Gas Online,TA Property Management,Supplies and Services Expenditure,99.00
05/09/2023,,LB of Brent,07/06/2023,British Gas Online,TA Property Management,Supplies and Services Expenditure,99.00
05/09/2023,,LB of Brent,07/06/2023,Poundland Ltd - 1584,Gordon Brown Outdoor Education Centre,Supplies and Services Expenditure,24.50
05/09/2023,,LB of Brent,07/06/2023,Wickes Basingstoke,Gordon Brown Outdoor Education Centre,Supplies and Services Expenditure,51.90
05/09/2023,,LB of Brent,07/06/2023,Travis Perkins,Gordon Brown Outdoor Education Centre,Supplies and Services Expenditure,263.40
05/09/2023,,LB of Brent,07/06/2023,Amazon Prime,Brent Sicts,Supplies and Services Expenditure,7.49
05/09/2023,,LB of Brent,07/06/2023,Calendly,Member Development,Financial Services,49.86
05/09/2023,,LB of Brent,07/06/2023,Amazon.Co.Uk,Revenues,Stationery,4.49
05/09/2023,,LB of Brent,07/06/2023,Amazon.Co.Uk,Revenues,Stationery,17.93
05/09/2023,,LB of Brent,07/06/2023,Amazon.Co.Uk,Revenues,Stationery,115.83
05/09/2023,,LB of Brent,08/06/2023,Tesco Stores 2122,Short Break Centre,Supplies and Services Expenditure,51.86
05/09/2023,,LB of Brent,08/06/2023,British Gas Online,TA Property Management,Supplies and Services Expenditure,99.00
05/09/2023,,LB of Brent,08/06/2023,Wickes Building,Gordon Brown Outdoor Education Centre,Supplies and Services Expenditure,76.00
05/09/2023,,LB of Brent,08/06/2023,Wickes Basingstoke,Gordon Brown Outdoor Education Centre,Supplies and Services Expenditure,81.45
05/09/2023,,LB of Brent,08/06/2023,Tesco Stores 2080,Gordon Brown Outdoor Education Centre,Supplies and Services Expenditure,180.21
05/09/2023,,LB of Brent,08/06/2023,Google*gsuite Bmsstaff,Brent Music Service,Supplies and Services Expenditure,92.00
05/09/2023,,LB of Brent,08/06/2023,Asda Superstore 04881,Willows Nursery,Supplies and Services Expenditure,32.30
05/09/2023,,LB of Brent,08/06/2023,Amazon Prime,Childrens Social Care Business Support,Supplies and Services Expenditure,7.49
05/09/2023,,LB of Brent,08/06/2023,Amznmktplace,Lewisham Sicts Consumables,Information Communication Technology,118.24
05/09/2023,,LB of Brent,08/06/2023,Amznmktplace,Operational Costs - Facilities,Stationery,11.65
05/09/2023,,LB of Brent,08/06/2023,Collections Trust,Heritage,Arts and Leisure Services,67.50
05/09/2023,,LB of Brent,08/06/2023,Asda Superstore 04881,Brent Family Solutions,Supplies and Services Expenditure,21.39
05/09/2023,,LB of Brent,08/06/2023,Costco Wholesale #128,Brent Family Solutions,Supplies and Services Expenditure,47.26
05/09/2023,,LB of Brent,08/06/2023,Asda Superstore 04881,Brent Family Solutions,Supplies and Services Expenditure,63.85
05/09/2023,,LB of Brent,08/06/2023,Asda Superstore 04881,Brent Family Solutions,Supplies and Services Expenditure,95.00
05/09/2023,,LB of Brent,08/06/2023,The Chartered Institut,Corporate Communications Unit,Supplies and Services Expenditure,150.00
05/09/2023,,LB of Brent,09/06/2023,1password,IT Operations,Information Communication Technology,10.28
05/09/2023,,LB of Brent,09/06/2023,Ppoint_*shop& S O L Ltd 3,Smart Team,Supplies and Services Expenditure,20.00
05/09/2023,,LB of Brent,09/06/2023,British Gas Online,NAIL Property Management,Supplies and Services Expenditure,82.50
05/09/2023,,LB of Brent,09/06/2023,British Gas Online,NAIL Property Management,Supplies and Services Expenditure,82.50
05/09/2023,,LB of Brent,09/06/2023,British Gas Online,NAIL Property Management,Supplies and Services Expenditure,82.50
05/09/2023,,LB of Brent,09/06/2023,British Gas Online,NAIL Property Management,Supplies and Services Expenditure,82.50
05/09/2023,,LB of Brent,09/06/2023,Squarespace Inc.,IT Operations,Supplies and Services Expenditure,40.00
05/09/2023,,LB of Brent,09/06/2023,Amznmktplace,Civic Centre - Av,Stationery,7.07
05/09/2023,,LB of Brent,09/06/2023,Gambling Commission,Community Engagement,Financial Services,40.00
05/09/2023,,LB of Brent,09/06/2023,Expedia Expedia 725780687,Homes for Ukraine Scheme,Human Resources - Training and Conferences,105.40
05/09/2023,,LB of Brent,09/06/2023,Trainline.Com,Housing Needs Housing Options Team,Supplies and Services Expenditure,88.29
05/09/2023,,LB of Brent,09/06/2023,Trainline.Com,Housing Needs Housing Options Team,Supplies and Services Expenditure,88.29
05/09/2023,,LB of Brent,09/06/2023,Trainline,Housing Needs Housing Options Team,Supplies and Services Expenditure,88.29
05/09/2023,,LB of Brent,10/06/2023,Tesco Stores 2122,Short Break Centre,Supplies and Services Expenditure,147.89
05/09/2023,,LB of Brent,10/06/2023,B&q Ltd,Afghan Resettlement Scheme,Social Community Care Supplies and Services - Adult,-100.37
05/09/2023,,LB of Brent,10/06/2023,Amazon Prime,Registration and Nationality Service,Supplies and Services Expenditure,7.49
05/09/2023,,LB of Brent,11/06/2023,Amznmktplace,IT Operations,Information Communication Technology,168.33
05/09/2023,,LB of Brent,11/06/2023,Amz,Customer Access Improvement and Performance,Stationery,-115.83
05/09/2023,,LB of Brent,12/06/2023,Amazon.Co.Uk,Willows Nursery,Supplies and Services Expenditure,17.00
05/09/2023,,LB of Brent,10/06/2023,Scottish Power,NAIL Property Management,Supplies and Services Expenditure,166.67
05/09/2023,,LB of Brent,10/06/2023,Scottish Power,NAIL Property Management,Supplies and Services Expenditure,166.67
05/09/2023,,LB of Brent,12/06/2023,Bolt.Eu/O/2306121611,Smart Team,Supplies and Services Expenditure,9.40
05/09/2023,,LB of Brent,12/06/2023,Currys Online,Neighbourhood Services - Estate Services,Supplies and Services Expenditure,460.83
05/09/2023,,LB of Brent,12/06/2023,Amz*amazon.Co.Uk,Customer Access Improvement and Performance,Stationery,-115.83
05/09/2023,,LB of Brent,12/06/2023,Www.Local.Gov.Uk,Political Group Support,Human Resources - Training and Conferences,667.08
05/09/2023,,LB of Brent,12/06/2023,Asda Groceries Online,Willows Nursery,Supplies and Services Expenditure,0.30
05/09/2023,,LB of Brent,12/06/2023,Amznmktplace,Willows Nursery,Supplies and Services Expenditure,10.29
05/09/2023,,LB of Brent,12/06/2023,Asda Groceries Online,Willows Nursery,Supplies and Services Expenditure,70.75
05/09/2023,,LB of Brent,12/06/2023,Paypal,Legal Support,Education,150.00
05/09/2023,,LB of Brent,12/06/2023,Www.Argos.Co.Uk,Homes for Ukraine Scheme,Furniture and Soft Furnishings,722.20
05/09/2023,,LB of Brent,12/06/2023,Tesco Stores 2080,Gordon Brown Outdoor Education Centre,Supplies and Services Expenditure,-12.30
05/09/2023,,LB of Brent,12/06/2023,Ascot Wholesale,Gordon Brown Outdoor Education Centre,Supplies and Services Expenditure,26.12
05/09/2023,,LB of Brent,12/06/2023,Tesco Stores 2080,Gordon Brown Outdoor Education Centre,Supplies and Services Expenditure,126.67
05/09/2023,,LB of Brent,12/06/2023,Gb Total Equestrian,Gordon Brown Outdoor Education Centre,Supplies and Services Expenditure,224.70
05/09/2023,,LB of Brent,12/06/2023,Trainline,Campaigns and Media,Supplies and Services Expenditure,94.71
05/09/2023,,LB of Brent,12/06/2023,Premier Inn,Campaigns and Media,Supplies and Services Expenditure,112.00
05/09/2023,,LB of Brent,13/06/2023,Asda Superstore 04881,Smart Team,Supplies and Services Expenditure,54.80
05/09/2023,,LB of Brent,13/06/2023,Amznmktplace,Gordon Brown Outdoor Education Centre,Supplies and Services Expenditure,104.99
05/09/2023,,LB of Brent,13/06/2023,Tfl Travel Ch,Bridge Park Facilities,Supplies and Services Expenditure,3.80
05/09/2023,,LB of Brent,13/06/2023,High Street Vouchers,Fostering Support Team B,Supplies and Services Expenditure,20.00
05/09/2023,,LB of Brent,13/06/2023,Estates & Management L,I4B Property Management,Financial Services,74.00
05/09/2023,,LB of Brent,13/06/2023,Amber Moves,Community Hubs,Financial Services,580.00
05/09/2023,,LB of Brent,13/06/2023,Namesco,IT Operations,Information Communication Technology,4.99
05/09/2023,,LB of Brent,13/06/2023,Trainline.Com,Housing Needs Housing Options Team,Supplies and Services Expenditure,87.68
05/09/2023,,LB of Brent,14/06/2023,Amazon.Co.Uk,Heritage,Arts and Leisure Services,21.86
05/09/2023,,LB of Brent,14/06/2023,Scottish Power,NAIL Property Management,Supplies and Services Expenditure,83.33
05/09/2023,,LB of Brent,14/06/2023,Scottish Power,NAIL Property Management,Supplies and Services Expenditure,83.33
05/09/2023,,LB of Brent,14/06/2023,Scottish Power,NAIL Property Management,Supplies and Services Expenditure,166.67
05/09/2023,,LB of Brent,14/06/2023,Scottish Power,NAIL Property Management,Supplies and Services Expenditure,166.67
05/09/2023,,LB of Brent,14/06/2023,Scottish Power,NAIL Property Management,Supplies and Services Expenditure,166.67
05/09/2023,,LB of Brent,14/06/2023,Www.Screwfix.Com,Gordon Brown Outdoor Education Centre,Supplies and Services Expenditure,923.95
05/09/2023,,LB of Brent,14/06/2023,Swrailway Tck Off,Bridge Park Facilities,Supplies and Services Expenditure,11.30
05/09/2023,,LB of Brent,14/06/2023,Ee Limited,Brent Music Service,Supplies and Services Expenditure,450.56
05/09/2023,,LB of Brent,14/06/2023,Westminster Forum Proj,Public Health Miscellaneous,Supplies and Services Expenditure,312.00
05/09/2023,,LB of Brent,14/06/2023,Hmcts Westlondon073,Debt and Income,Supplies and Services Expenditure,358.50
05/09/2023,,LB of Brent,14/06/2023,Sp Uniform4kids,Afghan Resettlement Scheme,Social Community Care Supplies and Services - Adult,177.42
05/09/2023,,LB of Brent,14/06/2023,Sainsburys Wembley,Brent Family Solutions,Supplies and Services Expenditure,60.00
05/09/2023,,LB of Brent,14/06/2023,Tesco Stores 2080,Gordon Brown Outdoor Education Centre,Supplies and Services Expenditure,-8.20
05/09/2023,,LB of Brent,14/06/2023,Tesco Stores 2080,Gordon Brown Outdoor Education Centre,Supplies and Services Expenditure,144.23
05/09/2023,,LB of Brent,15/06/2023,Amznmktplace,Brent Family Solutions,Supplies and Services Expenditure,22.98
05/09/2023,,LB of Brent,14/06/2023,Hampton By Hilton,Political Group Support,Human Resources - Training and Conferences,796.00
05/09/2023,,LB of Brent,15/06/2023,Disclosure & Barring,Service Management and Support Services,Human Resources,13.00
05/09/2023,,LB of Brent,15/06/2023,The Makaton Charit,Short Break Centre,Supplies and Services Expenditure,6.50
05/09/2023,,LB of Brent,15/06/2023,Tesco Stores 2122,Short Break Centre,Supplies and Services Expenditure,146.60
05/09/2023,,LB of Brent,15/06/2023,Go Outdoors,Gordon Brown Outdoor Education Centre,Supplies and Services Expenditure,210.00
05/09/2023,,LB of Brent,15/06/2023,Sumup *friend Of Aylward,Fostering Support Team B,Supplies and Services Expenditure,10.00
05/09/2023,,LB of Brent,15/06/2023,Amz*sanjiaeu,Digital Post Room,Stationery,-29.98
05/09/2023,,LB of Brent,15/06/2023,Asda Superstore 04881,Willows Nursery,Supplies and Services Expenditure,24.00
05/09/2023,,LB of Brent,15/06/2023,Stena Line Travel,Looked After Children Team E,Supplies and Services Expenditure,40.00
05/09/2023,,LB of Brent,15/06/2023,Sainsburys S/mkt,Brent Family Solutions,Supplies and Services Expenditure,7.59
05/09/2023,,LB of Brent,15/06/2023,Prezzee/Gbde510ece,Brent Family Solutions,Supplies and Services Expenditure,150.00
05/09/2023,,LB of Brent,15/06/2023,Trainline.Com,Housing Needs Housing Options Team,Supplies and Services Expenditure,88.29
05/09/2023,,LB of Brent,15/06/2023,Canva* I03817-18883954,Housing Partnerships Service,Facilities and Management Services,10.99
05/09/2023,,LB of Brent,16/06/2023,Amznmktplace,Brent Music Service,Supplies and Services Expenditure,144.25
05/09/2023,,LB of Brent,16/06/2023,Amznmktplace,West Long-Term Team 3,Stationery,179.00
05/09/2023,,LB of Brent,16/06/2023,Bkg*hotel At Booking.C,Homes for Ukraine Scheme,Human Resources - Training and Conferences,714.00
05/09/2023,,LB of Brent,16/06/2023,Amz*evergreen Goods Lt,Parish Liaison,Stationery,-111.96
05/09/2023,,LB of Brent,16/06/2023,Ikea Ltd Shop Online,Afghan Resettlement Scheme,Social Community Care Supplies and Services - Adult,248.33
05/09/2023,,LB of Brent,16/06/2023,Companieshouse Web Filing,Legal Support,Legal Services,15.00
05/09/2023,,LB of Brent,16/06/2023,Companieshouse Web Filing,Legal Support,Legal Services,15.00
05/09/2023,,LB of Brent,16/06/2023,Companieshouse Web Filing,Legal Support,Legal Services,15.00
05/09/2023,,LB of Brent,16/06/2023,Companieshouse Web Filing,Legal Support,Legal Services,15.00
05/09/2023,,LB of Brent,16/06/2023,Costco Wholesale #128,Brent Family Solutions,Supplies and Services Expenditure,200.45
05/09/2023,,LB of Brent,16/06/2023,Trainline.Com,Housing Needs Housing Options Team,Supplies and Services Expenditure,-73.70
05/09/2023,,LB of Brent,16/06/2023,Trainline,Housing Needs Housing Options Team,Supplies and Services Expenditure,88.29
05/09/2023,,LB of Brent,17/06/2023,Tfl Oyster Auto Topup,Central Overheads,Supplies and Services Expenditure,16.67
05/09/2023,,LB of Brent,17/06/2023,Amznmktplace,Customer Access Improvement and Performance,Stationery,18.25
05/09/2023,,LB of Brent,17/06/2023,Amznmktplace,Civic Centre Conference and Events,Stationery,23.25
05/09/2023,,LB of Brent,17/06/2023,Amazon.Co.Uk,Heritage,Arts and Leisure Services,10.93
05/09/2023,,LB of Brent,17/06/2023,Amznmktplace,YOS General Fund,Supplies and Services Expenditure,47.49
05/09/2023,,LB of Brent,18/06/2023,Tesco Stores 2122,Short Break Centre,Supplies and Services Expenditure,131.15
05/09/2023,,LB of Brent,18/06/2023,Amznmktplace,NAIL Property Management,Supplies and Services Expenditure,24.97
05/09/2023,,LB of Brent,18/06/2023,Amznmktplace,Brent Music Service,Supplies and Services Expenditure,8.25
05/09/2023,,LB of Brent,18/06/2023,Amznmktplace,Customer Access Improvement and Performance,Stationery,3.98
05/09/2023,,LB of Brent,18/06/2023,Amznmktplace,Civic Centre - Av,Stationery,9.99
05/09/2023,,LB of Brent,18/06/2023,Amazon.Co.Uk,Pensions Team,Stationery,5.79
05/09/2023,,LB of Brent,18/06/2023,Amznmktplace,Brent Family Solutions,Supplies and Services Expenditure,33.12
05/09/2023,,LB of Brent,19/06/2023,Amznmktplace,Customer Access Improvement and Performance,Stationery,109.98
05/09/2023,,LB of Brent,19/06/2023,Amznmktplace,Brent Family Solutions,Supplies and Services Expenditure,29.91
05/09/2023,,LB of Brent,19/06/2023,Amznmktplace,Brent Family Solutions,Supplies and Services Expenditure,82.65
05/09/2023,,LB of Brent,09/06/2023,Trainline,Housing Needs Housing Options Team,Supplies and Services Expenditure,-73.70
05/09/2023,,LB of Brent,19/06/2023,Jj Food Service - Basi,Gordon Brown Outdoor Education Centre,Supplies and Services Expenditure,357.25
05/09/2023,,LB of Brent,19/06/2023,Amazon.Co.Uk,Customer Access Improvement and Performance,Stationery,3.98
05/09/2023,,LB of Brent,19/06/2023,Amazon.Co.Uk,Customer Access Improvement and Performance,Stationery,179.00
05/09/2023,,LB of Brent,19/06/2023,Asda Groceries Online,Willows Nursery,Supplies and Services Expenditure,85.89
05/09/2023,,LB of Brent,19/06/2023,Amazon.Co.Uk,East Long-Term Team 1,Supplies and Services Expenditure,1.64
05/09/2023,,LB of Brent,19/06/2023,Amznmktplace,East Long-Term Team 1,Supplies and Services Expenditure,30.05
05/09/2023,,LB of Brent,19/06/2023,Atlassian,Digital Comms,Supplies and Services Expenditure,9.68
05/09/2023,,LB of Brent,19/06/2023,Amazon.Co.Uk,Brent Family Solutions,Supplies and Services Expenditure,18.64
05/09/2023,,LB of Brent,19/06/2023,Amznmktplace,Brent Family Solutions,Supplies and Services Expenditure,29.98
05/09/2023,,LB of Brent,19/06/2023,Prezzee/Gbaa69333b,Brent Family Solutions,Supplies and Services Expenditure,70.00
05/09/2023,,LB of Brent,19/06/2023,Tesco Stores 2080,Gordon Brown Outdoor Education Centre,Supplies and Services Expenditure,208.41
05/09/2023,,LB of Brent,19/06/2023,Trainline.Com,Housing Needs Housing Options Team,Supplies and Services Expenditure,-73.70
05/09/2023,,LB of Brent,19/06/2023,Trainline.Com,Housing Needs Housing Options Team,Supplies and Services Expenditure,73.98
05/09/2023,,LB of Brent,20/06/2023,Amazon.Co.Uk,Short Break Centre,Supplies and Services Expenditure,12.98
05/09/2023,,LB of Brent,20/06/2023,Amazon.Co.Uk,Short Break Centre,Supplies and Services Expenditure,42.49
05/09/2023,,LB of Brent,20/06/2023,Zaks Shoe Service,TA Property Management,Supplies and Services Expenditure,9.00
05/09/2023,,LB of Brent,20/06/2023,Amznmktplace,NAIL Property Management,Supplies and Services Expenditure,629.94
05/09/2023,,LB of Brent,20/06/2023,Screwfix Dir Ltd,Gordon Brown Outdoor Education Centre,Supplies and Services Expenditure,156.55
05/09/2023,,LB of Brent,20/06/2023,Cm *musicroom.Com,Brent Music Service,Supplies and Services Expenditure,77.99
05/09/2023,,LB of Brent,20/06/2023,Amznmktplace,Civic Centre - Av,Stationery,12.02
05/09/2023,,LB of Brent,20/06/2023,Amznmktplace,Civic Centre - Av,Stationery,11.99
05/09/2023,,LB of Brent,20/06/2023,Amznmktplace,Civic Centre - Av,Stationery,63.96
05/09/2023,,LB of Brent,20/06/2023,Asda Superstore 04881,Willows Nursery,Supplies and Services Expenditure,22.50
05/09/2023,,LB of Brent,20/06/2023,Amznmktplace,Educational Psychology Statutory Services,Supplies and Services Expenditure,19.54
05/09/2023,,LB of Brent,20/06/2023,Amazon.Co.Uk,Legal Support,Stationery,16.66
05/09/2023,,LB of Brent,20/06/2023,Prezzee/Gbcb4d5297,Brent Family Solutions,Supplies and Services Expenditure,25.00
05/09/2023,,LB of Brent,20/06/2023,Costco Wholesale #128,Brent Family Solutions,Supplies and Services Expenditure,95.12
05/09/2023,,LB of Brent,20/06/2023,Amznmktplace,Brent Family Solutions,Supplies and Services Expenditure,219.98
05/09/2023,,LB of Brent,21/06/2023,Amznmktplace,Civic Centre - Av,Stationery,9.99
05/09/2023,,LB of Brent,21/06/2023,Amznmktplace,Civic Centre - Av,Stationery,12.02
05/09/2023,,LB of Brent,21/06/2023,Amazon.Co.Uk,Pensions Team,Stationery,14.87
05/09/2023,,LB of Brent,21/06/2023,Amznmktplace,Brent Family Solutions,Supplies and Services Expenditure,30.04
05/09/2023,,LB of Brent,21/06/2023,Amazon.Co.Uk,Corporate Communications Unit,Supplies and Services Expenditure,18.98
05/09/2023,,LB of Brent,21/06/2023,Amznmktplace,NAIL Property Management,Supplies and Services Expenditure,114.17
05/09/2023,,LB of Brent,21/06/2023,Amznmktplace,Southwark Sicts Consumables,Information Communication Technology,13.32
05/09/2023,,LB of Brent,21/06/2023,Amznmktplace,Chief Execs,Stationery,13.42
05/09/2023,,LB of Brent,21/06/2023,Domu,Climate Emergency Budget,Stationery,77.98
05/09/2023,,LB of Brent,21/06/2023,Manutan Uk,Climate Emergency Budget,Stationery,369.00
05/09/2023,,LB of Brent,21/06/2023,Amazon.Co.Uk,Customer Service,Stationery,48.32
05/09/2023,,LB of Brent,21/06/2023,Amznmktplace,Carpenders Park Cemetery,Stationery,66.33
05/09/2023,,LB of Brent,21/06/2023,Tesco Stores 2080,Gordon Brown Outdoor Education Centre,Supplies and Services Expenditure,151.13
05/09/2023,,LB of Brent,21/06/2023,Asda Superstore 04881,ICP Transformation Team,Supplies and Services Expenditure,34.75
05/09/2023,,LB of Brent,22/06/2023,Amznmktplace,Gordon Brown Outdoor Education Centre,Supplies and Services Expenditure,87.96
05/09/2023,,LB of Brent,22/06/2023,Amznmktplace,Registration and Nationality Service,Supplies and Services Expenditure,264.92
05/09/2023,,LB of Brent,22/06/2023,Tesco Stores 2122,Short Break Centre,Supplies and Services Expenditure,123.92
05/09/2023,,LB of Brent,22/06/2023,British Gas Online,NAIL Property Management,Supplies and Services Expenditure,82.50
05/09/2023,,LB of Brent,22/06/2023,British Gas Online,NAIL Property Management,Supplies and Services Expenditure,82.50
05/09/2023,,LB of Brent,22/06/2023,Ultra Secure Ltd,Gordon Brown Outdoor Education Centre,Supplies and Services Expenditure,31.20
05/09/2023,,LB of Brent,22/06/2023,Zoom.Us 888-799-9666,Brent Music Service,Supplies and Services Expenditure,562.85
05/09/2023,,LB of Brent,22/06/2023,Amznmktplace,Communities and Regeneration - Year End Financial Accounts,Stationery,37.90
05/09/2023,,LB of Brent,22/06/2023,Www.Argos.Co.Uk,Homes for Ukraine Scheme,Furniture and Soft Furnishings,-3.95
05/09/2023,,LB of Brent,22/06/2023,Www.Argos.Co.Uk,Homes for Ukraine Scheme,Furniture and Soft Furnishings,-10.00
05/09/2023,,LB of Brent,22/06/2023,Www.Argos.Co.Uk,Homes for Ukraine Scheme,Furniture and Soft Furnishings,-54.17
05/09/2023,,LB of Brent,22/06/2023,Amznmktplace,Brent Family Solutions,Supplies and Services Expenditure,86.27
05/09/2023,,LB of Brent,16/06/2023,Trainline,Housing Needs Housing Options Team,Supplies and Services Expenditure,-73.70
05/09/2023,,LB of Brent,23/06/2023,Amznmktplace,Gordon Brown Outdoor Education Centre,Supplies and Services Expenditure,129.97
05/09/2023,,LB of Brent,23/06/2023,Harberson Ltd,Fostering Support Team B,Supplies and Services Expenditure,85.80
05/09/2023,,LB of Brent,23/06/2023,Wilko Retail Limited,Parish Liaison,Stationery,44.58
05/09/2023,,LB of Brent,24/06/2023,Amznmktplace,Legal Support,Stationery,51.12
05/09/2023,,LB of Brent,24/06/2023,Hotjar,Digital Comms,Supplies and Services Expenditure,84.02
05/09/2023,,LB of Brent,25/06/2023,Tesco Stores 2122,Short Break Centre,Supplies and Services Expenditure,151.93
05/09/2023,,LB of Brent,25/06/2023,Amazon.Co.Uk,Gordon Brown Outdoor Education Centre,Supplies and Services Expenditure,29.85
05/09/2023,,LB of Brent,25/06/2023,Amznmktplace,Policy (Planning),Stationery,44.99
05/09/2023,,LB of Brent,25/06/2023,Amazon Prime,Customer Access Improvement and Performance,Financial Services,80.00
05/09/2023,,LB of Brent,26/06/2023,Tesco Stores 2080,Gordon Brown Outdoor Education Centre,Supplies and Services Expenditure,115.20
05/09/2023,,LB of Brent,26/06/2023,Asda Groceries Online,Willows Nursery,Supplies and Services Expenditure,-0.11
05/09/2023,,LB of Brent,26/06/2023,Wly,Willows Nursery,Supplies and Services Expenditure,15.00
05/09/2023,,LB of Brent,26/06/2023,Asda Groceries Online,Willows Nursery,Supplies and Services Expenditure,92.83
05/09/2023,,LB of Brent,26/06/2023,Www.Local.Gov.Uk,Directors Office - Integration and Improved Outcomes,Supplies and Services Expenditure,330.00
05/09/2023,,LB of Brent,26/06/2023,B&q Ltd,Afghan Resettlement Scheme,Social Community Care Supplies and Services - Adult,12.50
05/09/2023,,LB of Brent,26/06/2023,B&q Ltd,Afghan Resettlement Scheme,Social Community Care Supplies and Services - Adult,95.00
05/09/2023,,LB of Brent,26/06/2023,Amznmktplace,Operational Costs - Facilities,Supplies and Services Expenditure,53.72
05/09/2023,,LB of Brent,26/06/2023,Amznmktplace,Brent Family Solutions,Supplies and Services Expenditure,74.99
05/09/2023,,LB of Brent,26/06/2023,Www.Papajohn S.Co.Uk,Brent Family Solutions,Supplies and Services Expenditure,109.94
05/09/2023,,LB of Brent,27/06/2023,Amznmktplace,Operational Costs - Facilities,Supplies and Services Expenditure,10.81
05/09/2023,,LB of Brent,27/06/2023,Amznmktplace,Pest Control,Environmental Services - Technical Equipment,5.45
05/09/2023,,LB of Brent,27/06/2023,Amznmktplace,Transformation Team,Stationery,51.96
05/09/2023,,LB of Brent,27/06/2023,Amznmktplace,Pest Control,Environmental Services - Technical Equipment,18.99
05/09/2023,,LB of Brent,27/06/2023,Amznmktplace,Pest Control,Environmental Services - Technical Equipment,6.50
05/09/2023,,LB of Brent,27/06/2023,Amznmktplace,Pest Control,Environmental Services - Technical Equipment,41.98
05/09/2023,,LB of Brent,27/06/2023,Posturite Ltd,Accounts Payable,Stationery,115.84
05/09/2023,,LB of Brent,27/06/2023,Currys Online,Kingsbury Library,Stationery,479.00
05/09/2023,,LB of Brent,27/06/2023,Amznmktplace,Operational Costs - Facilities,Supplies and Services Expenditure,8.32
05/09/2023,,LB of Brent,27/06/2023,Amznmktplace,Operational Costs - Facilities,Supplies and Services Expenditure,13.31
05/09/2023,,LB of Brent,27/06/2023,Amznmktplace,Operational Costs - Facilities,Supplies and Services Expenditure,24.50
05/09/2023,,LB of Brent,27/06/2023,Amznmktplace,Operational Costs - Facilities,Supplies and Services Expenditure,149.96
05/09/2023,,LB of Brent,27/06/2023,Amznmktplace,Communities and Regeneration - Year End Financial Accounts,Stationery,4.07
05/09/2023,,LB of Brent,27/06/2023,Brent Council,Brent Music Service,Supplies and Services Expenditure,21.00
05/09/2023,,LB of Brent,27/06/2023,Hampton By Hilton,Political Group Support,Human Resources - Training and Conferences,199.00
05/09/2023,,LB of Brent,27/06/2023,Brent Council,Parish Liaison,Financial Services,11.00
05/09/2023,,LB of Brent,27/06/2023,Brent Council,Parish Liaison,Financial Services,11.00
05/09/2023,,LB of Brent,27/06/2023,Brent Council,Parish Liaison,Financial Services,11.00
05/09/2023,,LB of Brent,28/06/2023,Safety Signs 4 Less,Gordon Brown Outdoor Education Centre,Supplies and Services Expenditure,108.95
05/09/2023,,LB of Brent,28/06/2023,Www.Screwfix.Com,Gordon Brown Outdoor Education Centre,Supplies and Services Expenditure,182.38
05/09/2023,,LB of Brent,28/06/2023,Amznmktplace,Brent Sicts Consumables,Information Communication Technology,8.32
05/09/2023,,LB of Brent,28/06/2023,Amazon.Co.Uk,Alternative Education - Management,Stationery,7.49
05/09/2023,,LB of Brent,28/06/2023,Amazon.Co.Uk,Alternative Education - Management,Stationery,8.95
05/09/2023,,LB of Brent,28/06/2023,Amznmktplace,Alternative Education - Management,Stationery,8.99
05/09/2023,,LB of Brent,28/06/2023,Amznmktplace,Alternative Education - Management,Stationery,8.99
05/09/2023,,LB of Brent,28/06/2023,Amznmktplace,Alternative Education - Management,Stationery,10.95
05/09/2023,,LB of Brent,28/06/2023,Amznmktplace,Alternative Education - Management,Stationery,10.95
05/09/2023,,LB of Brent,28/06/2023,Amznmktplace,Alternative Education - Management,Stationery,10.95
05/09/2023,,LB of Brent,28/06/2023,Amznmktplace,Alternative Education - Management,Stationery,12.95
05/09/2023,,LB of Brent,28/06/2023,Amazon.Co.Uk,Alternative Education - Management,Stationery,13.59
05/09/2023,,LB of Brent,28/06/2023,Amznmktplace,Alternative Education - Management,Stationery,13.85
05/09/2023,,LB of Brent,28/06/2023,Amznmktplace,Alternative Education - Management,Stationery,13.85
05/09/2023,,LB of Brent,28/06/2023,Amznmktplace,Alternative Education - Management,Stationery,13.89
05/09/2023,,LB of Brent,28/06/2023,Amazon.Co.Uk,Alternative Education - Management,Stationery,13.98
05/09/2023,,LB of Brent,28/06/2023,Amznmktplace,Alternative Education - Management,Stationery,14.84
05/09/2023,,LB of Brent,28/06/2023,Amznmktplace,Alternative Education - Management,Stationery,14.84
05/09/2023,,LB of Brent,28/06/2023,Amznmktplace,Alternative Education - Management,Stationery,14.85
05/09/2023,,LB of Brent,28/06/2023,Amznmktplace,Alternative Education - Management,Stationery,14.85
05/09/2023,,LB of Brent,28/06/2023,Amznmktplace,Alternative Education - Management,Stationery,14.95
05/09/2023,,LB of Brent,28/06/2023,Amznmktplace,Alternative Education - Management,Stationery,14.95
05/09/2023,,LB of Brent,28/06/2023,Amznmktplace,Alternative Education - Management,Stationery,15.99
05/09/2023,,LB of Brent,28/06/2023,Amznmktplace,Alternative Education - Management,Stationery,16.95
05/09/2023,,LB of Brent,28/06/2023,Amznmktplace,Alternative Education - Management,Stationery,16.96
05/09/2023,,LB of Brent,28/06/2023,Amznmktplace,Alternative Education - Management,Stationery,17.95
05/09/2023,,LB of Brent,28/06/2023,Amznmktplace,Alternative Education - Management,Stationery,18.76
05/09/2023,,LB of Brent,28/06/2023,Amznmktplace,Alternative Education - Management,Stationery,19.89
05/09/2023,,LB of Brent,28/06/2023,Amznmktplace,Alternative Education - Management,Stationery,19.90
05/09/2023,,LB of Brent,28/06/2023,Amazon.Co.Uk,Alternative Education - Management,Stationery,19.99
05/09/2023,,LB of Brent,28/06/2023,Amznmktplace,Alternative Education - Management,Stationery,25.98
05/09/2023,,LB of Brent,28/06/2023,Amznmktplace,Alternative Education - Management,Stationery,25.98
05/09/2023,,LB of Brent,28/06/2023,Amznmktplace,Alternative Education - Management,Stationery,26.99
05/09/2023,,LB of Brent,28/06/2023,Amazon.Co.Uk,Alternative Education - Management,Stationery,28.70
05/09/2023,,LB of Brent,28/06/2023,Amznmktplace,Alternative Education - Management,Stationery,29.97
05/09/2023,,LB of Brent,28/06/2023,Amznmktplace,Alternative Education - Management,Stationery,29.99
05/09/2023,,LB of Brent,28/06/2023,Amznmktplace,Alternative Education - Management,Stationery,31.98
05/09/2023,,LB of Brent,28/06/2023,Amazon.Co.Uk,Alternative Education - Management,Stationery,35.99
05/09/2023,,LB of Brent,28/06/2023,Amznmktplace,Alternative Education - Management,Stationery,37.78
05/09/2023,,LB of Brent,28/06/2023,Amznmktplace,Alternative Education - Management,Stationery,39.96
05/09/2023,,LB of Brent,28/06/2023,Amznmktplace,Alternative Education - Management,Stationery,41.94
05/09/2023,,LB of Brent,28/06/2023,Amznmktplace,Alternative Education - Management,Stationery,44.97
05/09/2023,,LB of Brent,28/06/2023,Amznmktplace,Alternative Education - Management,Stationery,57.98
05/09/2023,,LB of Brent,28/06/2023,Amznmktplace,Alternative Education - Management,Stationery,57.98
05/09/2023,,LB of Brent,28/06/2023,Amznmktplace,Alternative Education - Management,Stationery,62.94
05/09/2023,,LB of Brent,28/06/2023,Amazon.Co.Uk,Alternative Education - Management,Stationery,71.98
05/09/2023,,LB of Brent,28/06/2023,Amznmktplace,Alternative Education - Management,Stationery,87.98
05/09/2023,,LB of Brent,28/06/2023,Amznmktplace,Alternative Education - Management,Stationery,89.97
05/09/2023,,LB of Brent,28/06/2023,Amznmktplace,Alternative Education - Management,Stationery,101.80
05/09/2023,,LB of Brent,28/06/2023,Amznmktplace,Operational Costs - Facilities,Supplies and Services Expenditure,9.87
05/09/2023,,LB of Brent,28/06/2023,Amznmktplace,Operational Costs - Facilities,Supplies and Services Expenditure,25.41
05/09/2023,,LB of Brent,28/06/2023,Amznmktplace,Operational Costs - Facilities,Supplies and Services Expenditure,25.41
05/09/2023,,LB of Brent,28/06/2023,Amznmktplace,Operational Costs - Facilities,Supplies and Services Expenditure,78.27
05/09/2023,,LB of Brent,28/06/2023,Tesco Stores 2122,Brent Family Solutions,Supplies and Services Expenditure,32.90
05/09/2023,,LB of Brent,28/06/2023,Costco Wholesale #128,Brent Family Solutions,Supplies and Services Expenditure,174.03
05/09/2023,,LB of Brent,29/06/2023,Amznmktplace,Short Break Centre,Supplies and Services Expenditure,14.98
05/09/2023,,LB of Brent,29/06/2023,Amazon.Co.Uk,Alternative Education - Management,Stationery,13.59
05/09/2023,,LB of Brent,29/06/2023,Amznmktplace,Alternative Education - Management,Stationery,18.95
05/09/2023,,LB of Brent,28/06/2023,Tfl Roadchg Stdautopay,Building Cleaning,Supplies and Services Expenditure,895.83
05/09/2023,,LB of Brent,28/06/2023,Brent Council,Bridge Park Facilities,Supplies and Services Expenditure,3.00
05/09/2023,,LB of Brent,28/06/2023,Brent Council,Bridge Park Facilities,Supplies and Services Expenditure,7.00
05/09/2023,,LB of Brent,29/06/2023,Tesco Stores 2122,Short Break Centre,Supplies and Services Expenditure,-4.30
05/09/2023,,LB of Brent,29/06/2023,Tesco Stores 2122,Short Break Centre,Supplies and Services Expenditure,168.37
05/09/2023,,LB of Brent,29/06/2023,Hse - Bsr,Asset Compliance Team,Supplies and Services Expenditure,209.17
05/09/2023,,LB of Brent,29/06/2023,Hse - Bsr,Asset Compliance Team,Supplies and Services Expenditure,209.17
05/09/2023,,LB of Brent,29/06/2023,Hse - Bsr,Asset Compliance Team,Supplies and Services Expenditure,209.17
05/09/2023,,LB of Brent,29/06/2023,Hse - Bsr,Asset Compliance Team,Supplies and Services Expenditure,209.17
05/09/2023,,LB of Brent,29/06/2023,Hse - Bsr,Asset Compliance Team,Supplies and Services Expenditure,209.17
05/09/2023,,LB of Brent,29/06/2023,Hse - Bsr,Asset Compliance Team,Supplies and Services Expenditure,209.17
05/09/2023,,LB of Brent,29/06/2023,Hse - Bsr,Asset Compliance Team,Supplies and Services Expenditure,209.17
05/09/2023,,LB of Brent,29/06/2023,Hse - Bsr,Asset Compliance Team,Supplies and Services Expenditure,209.17
05/09/2023,,LB of Brent,29/06/2023,Hse - Bsr,Asset Compliance Team,Supplies and Services Expenditure,209.17
05/09/2023,,LB of Brent,29/06/2023,Hse - Bsr,Asset Compliance Team,Supplies and Services Expenditure,209.17
05/09/2023,,LB of Brent,29/06/2023,Hse - Bsr,Asset Compliance Team,Supplies and Services Expenditure,209.17
05/09/2023,,LB of Brent,29/06/2023,Hse - Bsr,Asset Compliance Team,Supplies and Services Expenditure,209.17
05/09/2023,,LB of Brent,29/06/2023,Hse - Bsr,Asset Compliance Team,Supplies and Services Expenditure,209.17
05/09/2023,,LB of Brent,29/06/2023,Hse - Bsr,Asset Compliance Team,Supplies and Services Expenditure,209.17
05/09/2023,,LB of Brent,29/06/2023,Hse - Bsr,Asset Compliance Team,Supplies and Services Expenditure,209.17
05/09/2023,,LB of Brent,29/06/2023,Hse - Bsr,Asset Compliance Team,Supplies and Services Expenditure,209.17
05/09/2023,,LB of Brent,29/06/2023,Hse - Bsr,Asset Compliance Team,Supplies and Services Expenditure,209.17
05/09/2023,,LB of Brent,29/06/2023,Hse - Bsr,Asset Compliance Team,Supplies and Services Expenditure,251.00
05/09/2023,,LB of Brent,29/06/2023,Hse - Bsr,Asset Compliance Team,Supplies and Services Expenditure,209.17
05/09/2023,,LB of Brent,29/06/2023,Hse - Bsr,Asset Compliance Team,Supplies and Services Expenditure,209.17
05/09/2023,,LB of Brent,29/06/2023,Amznmktplace,Gordon Brown Outdoor Education Centre,Supplies and Services Expenditure,16.26
05/09/2023,,LB of Brent,29/06/2023,Www.Argos.Co.Uk,Homes for Ukraine Scheme,Stationery,80.95
05/09/2023,,LB of Brent,29/06/2023,Net World Sports,Gordon Brown Outdoor Education Centre,Supplies and Services Expenditure,302.04
05/09/2023,,LB of Brent,29/06/2023,High Street Vouchers,ICP Transformation Team,Supplies and Services Expenditure,25.00
05/09/2023,,LB of Brent,30/06/2023,Amazon.Co.Uk,Lewisham IT Shared Service,Information Communication Technology,33.02
05/09/2023,,LB of Brent,30/06/2023,British Gas Online,NAIL Property Management,Supplies and Services Expenditure,82.50
05/09/2023,,LB of Brent,30/06/2023,British Gas Online,NAIL Property Management,Supplies and Services Expenditure,82.50
05/09/2023,,LB of Brent,30/06/2023,British Gas Online,NAIL Property Management,Supplies and Services Expenditure,99.00
05/09/2023,,LB of Brent,30/06/2023,Scottish Power,NAIL Property Management,Supplies and Services Expenditure,166.67
05/09/2023,,LB of Brent,30/06/2023,Scottish Power,NAIL Property Management,Supplies and Services Expenditure,166.67
05/09/2023,,LB of Brent,30/06/2023,Mfg Barton Stacey,Gordon Brown Outdoor Education Centre,Supplies and Services Expenditure,30.36
05/09/2023,,LB of Brent,30/06/2023,Canva* I03832-18651964,Bridge Park Facilities,Supplies and Services Expenditure,9.16
05/09/2023,,LB of Brent,30/06/2023,Canva* I03832-14748678,Bridge Park Facilities,Supplies and Services Expenditure,127.50
05/09/2023,,LB of Brent,30/06/2023,Entrust Gbp,Lewisham Homes,Information Communication Technology,313.96
05/09/2023,,LB of Brent,30/06/2023,Qr.Io Generator,Strategy and Partnerships,Financial Services,28.62
05/09/2023,,LB of Brent,30/06/2023,Amznmktplace,Operational Costs - Facilities,Supplies and Services Expenditure,12.46
05/09/2023,,LB of Brent,30/06/2023,Www.Avantiwestcoast.Co,Debt and Income,Supplies and Services Expenditure,103.10
05/09/2023,,LB of Brent,30/06/2023,Amznmktplace,Gordon Brown Outdoor Education Centre,Supplies and Services Expenditure,55.90
05/09/2023,,LB of Brent,01/07/2023,Calendly,Brent Music Service,Supplies and Services Expenditure,8.18
05/09/2023,,LB of Brent,01/07/2023,Gsuite_bmsstaff.Com,Brent Music Service,Supplies and Services Expenditure,92.00
05/09/2023,,LB of Brent,01/07/2023,Flickr Pro Monthly,Digital Comms,Supplies and Services Expenditure,6.99
05/09/2023,,LB of Brent,02/07/2023,Tesco Stores 2122,Short Break Centre,Supplies and Services Expenditure,145.24
05/09/2023,,LB of Brent,02/07/2023,Amznmktplace,Brent Music Service,Supplies and Services Expenditure,34.00
05/09/2023,,LB of Brent,02/07/2023,Amazon Prime,Willows Nursery,Supplies and Services Expenditure,7.49
05/09/2023,,LB of Brent,02/07/2023,Asda Superstore 04881,Willows Nursery,Supplies and Services Expenditure,44.47
05/09/2023,,LB of Brent,02/07/2023,Msft * E0600nzqn5,IT Operations,Supplies and Services Expenditure,5.40
05/09/2023,,LB of Brent,02/07/2023,Amznmktplace,Brent Family Solutions,Supplies and Services Expenditure,27.97
05/09/2023,,LB of Brent,03/07/2023,Amznmktplace,Customer Access Improvement and Performance,Stationery,139.98
05/09/2023,,LB of Brent,03/07/2023,Amznmktplace,Short Break Centre,Supplies and Services Expenditure,10.61
05/09/2023,,LB of Brent,03/07/2023,Amznmktplace,Short Break Centre,Supplies and Services Expenditure,10.61
05/09/2023,,LB of Brent,03/07/2023,Sainsburys S/Mkts,Political Group Support,Human Resources - Training and Conferences,19.59
05/09/2023,,LB of Brent,03/07/2023,Asda Groceries Online,Willows Nursery,Supplies and Services Expenditure,6.50
05/09/2023,,LB of Brent,03/07/2023,Amznmktplace,Brent Family Solutions,Supplies and Services Expenditure,107.92
05/09/2023,,LB of Brent,03/07/2023,One4all,YOS MOPAC,Supplies and Services Expenditure,250.99
05/09/2023,,LB of Brent,03/07/2023,Amznmktplace,Gordon Brown Outdoor Education Centre,Supplies and Services Expenditure,29.94
05/09/2023,,LB of Brent,03/07/2023,Gls Educational Su,Gordon Brown Outdoor Education Centre,Supplies and Services Expenditure,233.75
05/09/2023,,LB of Brent,04/07/2023,Amznmktplace,Customer Access Improvement and Performance,Stationery,139.98
05/09/2023,,LB of Brent,04/07/2023,Amznmktplace,Short Break Centre,Supplies and Services Expenditure,10.95
05/09/2023,,LB of Brent,04/07/2023,Amznmktplace,Short Break Centre,Supplies and Services Expenditure,28.00
05/09/2023,,LB of Brent,04/07/2023,Amznmktplace,Short Break Centre,Supplies and Services Expenditure,14.96
05/09/2023,,LB of Brent,04/07/2023,Amznmktplace,Short Break Centre,Supplies and Services Expenditure,17.87
05/09/2023,,LB of Brent,04/07/2023,Amznmktplace,Short Break Centre,Supplies and Services Expenditure,37.28
05/09/2023,,LB of Brent,04/07/2023,Amznmktplace,Short Break Centre,Supplies and Services Expenditure,43.23
05/09/2023,,LB of Brent,04/07/2023,Amazon.Co.Uk,NAIL Property Management,Supplies and Services Expenditure,549.17
05/09/2023,,LB of Brent,04/07/2023,Amazon.Co.Uk,Brent Music Service,Supplies and Services Expenditure,70.00
05/09/2023,,LB of Brent,04/07/2023,Amznmktplace,Customer Access Improvement and Performance,Stationery,3.98
05/09/2023,,LB of Brent,04/07/2023,Amznmktplace,Cemeteries Admin,Stationery,42.00
05/09/2023,,LB of Brent,04/07/2023,Amazon.Co.Uk,Legal Support,Stationery,114.97
05/09/2023,,LB of Brent,04/07/2023,Amznmktplace,Cemeteries Admin,Stationery,97.86
05/09/2023,,LB of Brent,04/07/2023,Amznmktplace,Cemeteries Admin,Stationery,21.00
05/09/2023,,LB of Brent,04/07/2023,Amznmktplace,Customer Access Improvement and Performance,Stationery,155.98
05/09/2023,,LB of Brent,04/07/2023,Amazon.Co.Uk,Customer Access Improvement and Performance,Stationery,155.98
05/09/2023,,LB of Brent,04/07/2023,Amazon.Co.Uk,Customer Access Improvement and Performance,Stationery,623.92
05/09/2023,,LB of Brent,04/07/2023,Replacement Keys Ltd,Training Costs - Learning and Staff Development,Supplies and Services Expenditure,14.75
05/09/2023,,LB of Brent,04/07/2023,Asda George Com Leeds,Afghan Resettlement Scheme,Social Community Care Supplies and Services - Children,28.33
05/09/2023,,LB of Brent,04/07/2023,Ace Clothing Company,Afghan Resettlement Scheme,Social Community Care Supplies and Services - Adult,237.76
05/09/2023,,LB of Brent,04/07/2023,Bakerybits Ltd,Gordon Brown Outdoor Education Centre,Supplies and Services Expenditure,19.47
05/09/2023,,LB of Brent,04/07/2023,Www.Powerfan.Co.Uk,Gordon Brown Outdoor Education Centre,Supplies and Services Expenditure,35.62
05/09/2023,,LB of Brent,04/07/2023,Www.Express-Cleaning-Sup,Gordon Brown Outdoor Education Centre,Supplies and Services Expenditure,142.87
05/09/2023,,LB of Brent,04/07/2023,Brent Council,Parish Liaison,Financial Services,11.00
05/09/2023,,LB of Brent,05/07/2023,Paypal,Short Break Centre,Supplies and Services Expenditure,243.00
05/09/2023,,LB of Brent,05/07/2023,British Gas Online,TA Property Management,Supplies and Services Expenditure,94.29
05/09/2023,,LB of Brent,05/07/2023,British Gas Online,TA Property Management,Supplies and Services Expenditure,94.29
05/09/2023,,LB of Brent,05/07/2023,British Gas Online,NAIL Property Management,Supplies and Services Expenditure,82.50
05/09/2023,,LB of Brent,05/07/2023,British Gas Online,TA Property Management,Supplies and Services Expenditure,99.00
05/09/2023,,LB of Brent,05/07/2023,British Gas Online,TA Property Management,Supplies and Services Expenditure,94.29
05/09/2023,,LB of Brent,05/07/2023,British Gas Online,TA Property Management,Supplies and Services Expenditure,94.29
05/09/2023,,LB of Brent,05/07/2023,Hse - Bsr,NAIL Property Management,Supplies and Services Expenditure,209.17
05/09/2023,,LB of Brent,05/07/2023,Hse - Bsr,Asset Compliance Team,Supplies and Services Expenditure,251.00
05/09/2023,,LB of Brent,05/07/2023,Hse - Bsr,Asset Compliance Team,Supplies and Services Expenditure,209.17
05/09/2023,,LB of Brent,05/07/2023,Hse - Bsr,Asset Compliance Team,Supplies and Services Expenditure,209.17
05/09/2023,,LB of Brent,05/07/2023,Hse - Bsr,Asset Compliance Team,Supplies and Services Expenditure,209.17
05/09/2023,,LB of Brent,05/07/2023,Hse - Bsr,Asset Compliance Team,Supplies and Services Expenditure,209.17
05/09/2023,,LB of Brent,05/07/2023,Hse - Bsr,Asset Compliance Team,Supplies and Services Expenditure,209.17
05/09/2023,,LB of Brent,05/07/2023,Hse - Bsr,Asset Compliance Team,Supplies and Services Expenditure,209.17
05/09/2023,,LB of Brent,05/07/2023,Hse - Bsr,Asset Compliance Team,Supplies and Services Expenditure,209.17
05/09/2023,,LB of Brent,05/07/2023,Hse - Bsr,Asset Compliance Team,Supplies and Services Expenditure,209.17
05/09/2023,,LB of Brent,05/07/2023,Hse - Bsr,Asset Compliance Team,Supplies and Services Expenditure,209.17
05/09/2023,,LB of Brent,05/07/2023,Hse - Bsr,Asset Compliance Team,Supplies and Services Expenditure,251.00
05/09/2023,,LB of Brent,05/07/2023,Hse - Bsr,Asset Compliance Team,Supplies and Services Expenditure,209.17
05/09/2023,,LB of Brent,05/07/2023,Hse - Bsr,Asset Compliance Team,Supplies and Services Expenditure,209.17
05/09/2023,,LB of Brent,05/07/2023,Hse - Bsr,Asset Compliance Team,Supplies and Services Expenditure,209.17
05/09/2023,,LB of Brent,05/07/2023,Amznmktplace,Lewisham IT Shared Service,Information Communication Technology,7.91
05/09/2023,,LB of Brent,05/07/2023,Hmctslondoncse077,Debt and Income,Supplies and Services Expenditure,715.50
05/09/2023,,LB of Brent,05/07/2023,Tesco Stores 2080,Gordon Brown Outdoor Education Centre,Supplies and Services Expenditure,152.01
05/09/2023,,LB of Brent,06/07/2023,Amznmktplace,Short Break Centre,Supplies and Services Expenditure,12.49
05/09/2023,,LB of Brent,06/07/2023,Amznmktplace,Short Break Centre,Supplies and Services Expenditure,12.11
05/09/2023,,LB of Brent,06/07/2023,Amznmktplace,Short Break Centre,Supplies and Services Expenditure,12.15
05/09/2023,,LB of Brent,06/07/2023,Jackmans,Smart Team,Supplies and Services Expenditure,20.00
05/09/2023,,LB of Brent,06/07/2023,Amznmktplace,Southwark Sicts Consumables,Information Communication Technology,4.99
05/09/2023,,LB of Brent,06/07/2023,Paypal,Afghan Resettlement Scheme,Supplies and Services Expenditure,149.09
05/09/2023,,LB of Brent,06/07/2023,Intellisoftware Ltd,IT Operations,Information Communication Technology,10.00
05/09/2023,,LB of Brent,06/07/2023,Costco Wholesale #128,Wembley Learning Zone,Catering,95.79
05/09/2023,,LB of Brent,07/07/2023,Amznmktplace,Quality and Business Rates,Stationery,9.99
05/09/2023,,LB of Brent,07/07/2023,Amznmktplace,Quality and Business Rates,Stationery,18.99
05/09/2023,,LB of Brent,07/07/2023,Amazon Prime,Brent Sicts,Information Communication Technology,7.49
05/09/2023,,LB of Brent,07/07/2023,Calendly,Member Development,Financial Services,48.75
05/09/2023,,LB of Brent,07/07/2023,Bkg*hotel At Booking.C,Housing Needs Accommodation Team,Supplies and Services Expenditure,447.00
05/09/2023,,LB of Brent,07/07/2023,Amznmktplace,Audit and Investigations,Supplies and Services Expenditure,28.47
05/09/2023,,LB of Brent,08/07/2023,Tesco Stores 2132,Fostering Support Team B,Supplies and Services Expenditure,5.50
05/09/2023,,LB of Brent,08/07/2023,Tesco Stores 2132,Fostering Support Team B,Supplies and Services Expenditure,6.00
05/09/2023,,LB of Brent,08/07/2023,Uber *trip,Fostering Support Team B,Supplies and Services Expenditure,6.96
05/09/2023,,LB of Brent,08/07/2023,Uber *trip,Fostering Support Team B,Supplies and Services Expenditure,8.90
05/09/2023,,LB of Brent,08/07/2023,Bkg*hotel At Booking.C,Housing Needs Accommodation Team,Supplies and Services Expenditure,-278.00
05/09/2023,,LB of Brent,08/07/2023,Amazon Prime,Childrens Social Care Business Support,Supplies and Services Expenditure,7.49
05/09/2023,,LB of Brent,08/07/2023,Amznmktplace,Wembley Learning Zone,Education,226.40
05/09/2023,,LB of Brent,10/07/2023,Tesco Stores 2080,Gordon Brown Outdoor Education Centre,Supplies and Services Expenditure,191.66
05/09/2023,,LB of Brent,10/07/2023,Posturite Ltd,Accounts Payable,Stationery,67.96
05/09/2023,,LB of Brent,10/07/2023,Posturite Ltd,Accounts Payable,Stationery,91.58
05/09/2023,,LB of Brent,10/07/2023,Amznmktplace,Referral and Assessment Team 1,Stationery,129.98
05/09/2023,,LB of Brent,10/07/2023,Www.Argos.Co.Uk,Homes for Ukraine Scheme,Stationery,135.51
05/09/2023,,LB of Brent,10/07/2023,Asda Groceries Online,Willows Nursery,Supplies and Services Expenditure,53.47
05/09/2023,,LB of Brent,10/07/2023,Amazon Prime,Registration and Nationality Service,Supplies and Services Expenditure,7.49
05/09/2023,,LB of Brent,10/07/2023,Uber *trip,Housing Partnerships Service,Human Resources - Travel and Subsistence - Taxi Fares,10.40
05/09/2023,,LB of Brent,10/07/2023,Sainsburys S/Mkts,ICP Transformation Team,Supplies and Services Expenditure,8.05
05/09/2023,,LB of Brent,10/07/2023,Brent Council,Fostering Support Team B,Supplies and Services Expenditure,70.00
05/09/2023,,LB of Brent,11/07/2023,Tesco Stores 2122,Short Break Centre,Supplies and Services Expenditure,117.04
05/09/2023,,LB of Brent,11/07/2023,British Gas Online,NAIL Property Management,Supplies and Services Expenditure,82.50
05/09/2023,,LB of Brent,11/07/2023,British Gas Online,NAIL Property Management,Supplies and Services Expenditure,82.50
05/09/2023,,LB of Brent,11/07/2023,Scottish Power,NAIL Property Management,Supplies and Services Expenditure,83.33
05/09/2023,,LB of Brent,11/07/2023,Scottish Power,NAIL Property Management,Supplies and Services Expenditure,83.33
05/09/2023,,LB of Brent,11/07/2023,Scottish Power,NAIL Property Management,Supplies and Services Expenditure,166.67
05/09/2023,,LB of Brent,11/07/2023,Scottish Power,NAIL Property Management,Supplies and Services Expenditure,166.67
05/09/2023,,LB of Brent,11/07/2023,Scottish Power,NAIL Property Management,Supplies and Services Expenditure,166.67
05/09/2023,,LB of Brent,11/07/2023,Sumup *natalie Delsol,Bridge Park Facilities,Supplies and Services Expenditure,25.00
05/09/2023,,LB of Brent,11/07/2023,Amznmktplace,Referral and Assessment Team 1,Stationery,3.98
05/09/2023,,LB of Brent,11/07/2023,Www.Argos.Co.Uk,Residential and Nursing Team,Supplies and Services Expenditure,98.43
05/09/2023,,LB of Brent,11/07/2023,Www.Argos.Co.Uk,Residential and Nursing Team,Supplies and Services Expenditure,128.42
05/09/2023,,LB of Brent,11/07/2023,Amznmktplace,Civic Centre Conference and Events,Stationery,4.99
05/09/2023,,LB of Brent,11/07/2023,Amznmktplace,Civic Centre Conference and Events,Stationery,4.99
05/09/2023,,LB of Brent,11/07/2023,Amazon.Co.Uk,Customer Access Improvement and Performance,Stationery,28.25
05/09/2023,,LB of Brent,11/07/2023,Costco Wholesale #128,Wembley Learning Zone,Catering,159.57
05/09/2023,,LB of Brent,11/07/2023,Www.Argos.Co.Uk,Brent Family Solutions,Supplies and Services Expenditure,35.00
05/09/2023,,LB of Brent,12/07/2023,Amznmktplace,Brent Family Solutions,Supplies and Services Expenditure,16.98
05/09/2023,,LB of Brent,12/07/2023,The Same Day People Ltd,Brent Music Service,Supplies and Services Expenditure,85.00
05/09/2023,,LB of Brent,12/07/2023,Amznmktplace,Referral and Assessment Team 1,Stationery,168.59
05/09/2023,,LB of Brent,12/07/2023,Www.Discountdisplays.C,Training Costs - Learning and Staff Development,Supplies and Services Expenditure,153.48
05/09/2023,,LB of Brent,12/07/2023,Amznmktplace,Civic Centre Conference and Events,Stationery,17.37
05/09/2023,,LB of Brent,12/07/2023,Amznmktplace,Community Hubs,Stationery,41.66
05/09/2023,,LB of Brent,12/07/2023,Asda Superstore 04881,Brent Family Solutions,Supplies and Services Expenditure,17.90
05/09/2023,,LB of Brent,12/07/2023,Voucher Express,Brent Family Solutions,Supplies and Services Expenditure,50.00
05/09/2023,,LB of Brent,12/07/2023,Tesco Stores 2080,Gordon Brown Outdoor Education Centre,Supplies and Services Expenditure,228.23
05/09/2023,,LB of Brent,12/07/2023,Brent Council,Parish Liaison,Financial Services,22.00
05/09/2023,,LB of Brent,13/07/2023,Canva* I03845-19675910,Bridge Park Facilities,Supplies and Services Expenditure,140.00
05/09/2023,,LB of Brent,13/07/2023,Iceland Foods,Residential and Nursing Team,Supplies and Services Expenditure,56.90
05/09/2023,,LB of Brent,13/07/2023,Namesco,IT Operations,Supplies and Services Expenditure,4.99
05/09/2023,,LB of Brent,14/07/2023,Costco Wholesale #128,Bridge Park Facilities,Supplies and Services Expenditure,10.47
05/09/2023,,LB of Brent,14/07/2023,Amznmktplace,Operational Costs - Facilities,Supplies and Services Expenditure,117.92
05/09/2023,,LB of Brent,14/07/2023,Amznmktplace,Operational Costs - Facilities,Supplies and Services Expenditure,117.92
05/09/2023,,LB of Brent,14/07/2023,Amznmktplace,Operational Costs - Facilities,Supplies and Services Expenditure,117.92
05/09/2023,,LB of Brent,14/07/2023,Hse - Bsr,Asset Compliance Team,Financial Services,251.00
05/09/2023,,LB of Brent,14/07/2023,Hse - Bsr,Asset Compliance Team,Financial Services,251.00
05/09/2023,,LB of Brent,14/07/2023,Hse - Bsr,Asset Compliance Team,Financial Services,251.00
05/09/2023,,LB of Brent,14/07/2023,Hse - Bsr,Asset Compliance Team,Financial Services,251.00
05/09/2023,,LB of Brent,14/07/2023,C2e859600844b Ukvi,Schools Hr,Financial Services,"3,199.00"
05/09/2023,,LB of Brent,14/07/2023,Tesco Stores 2080,Gordon Brown Outdoor Education Centre,Supplies and Services Expenditure,213.39
05/09/2023,,LB of Brent,14/07/2023,Trainline.Com,Housing Needs Housing Options Team,Supplies and Services Expenditure,100.99
05/09/2023,,LB of Brent,15/07/2023,Tesco Stores 2122,Short Break Centre,Supplies and Services Expenditure,207.58
05/09/2023,,LB of Brent,15/07/2023,Uber* Trip,Fostering Support Team B,Supplies and Services Expenditure,14.99
05/09/2023,,LB of Brent,15/07/2023,Tasker On Taskrabbit,Afghan Resettlement Scheme,Social Community Care Supplies and Services - Adult,90.00
05/09/2023,,LB of Brent,15/07/2023,Amznmktplace,Operational Costs - Facilities,Supplies and Services Expenditure,19.86
05/09/2023,,LB of Brent,15/07/2023,Canva* I03847-14501776,Housing Partnerships Service,Supplies and Services Expenditure,10.99
05/09/2023,,LB of Brent,16/07/2023,Amazon.Co.Uk,Short Break Centre,Supplies and Services Expenditure,89.00
05/09/2023,,LB of Brent,16/07/2023,Tesco Stores 2122,Brent Music Service,Supplies and Services Expenditure,36.20
05/09/2023,,LB of Brent,16/07/2023,Costco Wholesale #128,Brent Music Service,Supplies and Services Expenditure,60.14
05/09/2023,,LB of Brent,16/07/2023,Amznmktplace,Alternative Education - Management,Supplies and Services Expenditure,39.99
05/09/2023,,LB of Brent,16/07/2023,Amznmktplace,IT Operations,Supplies and Services Expenditure,43.32
05/09/2023,,LB of Brent,16/07/2023,Amazon.Co.Uk,Brent Family Solutions,Supplies and Services Expenditure,25.98
05/09/2023,,LB of Brent,16/07/2023,Amznmktplace,Brent Family Solutions,Supplies and Services Expenditure,35.97
05/09/2023,,LB of Brent,16/07/2023,Amznmktplace,Brent Family Solutions,Supplies and Services Expenditure,201.57
05/09/2023,,LB of Brent,17/07/2023,Tesco Stores 2080,Gordon Brown Outdoor Education Centre,Supplies and Services Expenditure,6.29
05/09/2023,,LB of Brent,17/07/2023,Boots 6130,Gordon Brown Outdoor Education Centre,Supplies and Services Expenditure,9.98
05/09/2023,,LB of Brent,17/07/2023,Asda Groceries Online,Willows Nursery,Supplies and Services Expenditure,83.51
05/09/2023,,LB of Brent,17/07/2023,Amazon.Co.Uk,IT Operations,Supplies and Services Expenditure,179.63
05/09/2023,,LB of Brent,17/07/2023,High Street Vouchers,Digital Comms,Supplies and Services Expenditure,25.00
05/09/2023,,LB of Brent,17/07/2023,Amznmktplace,Pest Control,Stationery,12.46
05/09/2023,,LB of Brent,17/07/2023,Amazon.Co.Uk,Legal Support,Stationery,34.02
05/09/2023,,LB of Brent,17/07/2023,Amazon.Co.Uk,Legal Support,Stationery,136.07
05/09/2023,,LB of Brent,17/07/2023,Amznmktplace,Brent Family Solutions,Supplies and Services Expenditure,87.81
05/09/2023,,LB of Brent,17/07/2023,Trainline,Housing Needs Housing Options Team,Supplies and Services Expenditure,67.89
05/09/2023,,LB of Brent,17/07/2023,Www.Argos.Co.Uk,Housing Stakeholder Management,Supplies and Services Expenditure,52.00
05/09/2023,,LB of Brent,17/07/2023,Www.Villagevet.Co.Uk,Housing Partnerships Service,Supplies and Services Expenditure,270.00
05/09/2023,,LB of Brent,18/07/2023,Amznmktplace,Customer Access Improvement and Performance,Stationery,5.82
05/09/2023,,LB of Brent,18/07/2023,Screwfix Dir Ltd,Gordon Brown Outdoor Education Centre,Supplies and Services Expenditure,72.87
05/09/2023,,LB of Brent,18/07/2023,C.A Stevens And Sons,Gordon Brown Outdoor Education Centre,Supplies and Services Expenditure,686.05
05/09/2023,,LB of Brent,18/07/2023,Pets At Home Ltd,Willows Nursery,Supplies and Services Expenditure,12.99
05/09/2023,,LB of Brent,18/07/2023,Amznmktplace,IT Operations,Supplies and Services Expenditure,11.66
05/09/2023,,LB of Brent,18/07/2023,Amznmktplace,Gordon Brown Outdoor Education Centre,Supplies and Services Expenditure,28.40
05/09/2023,,LB of Brent,18/07/2023,Amznmktplace,Gordon Brown Outdoor Education Centre,Supplies and Services Expenditure,8.99
05/09/2023,,LB of Brent,18/07/2023,Sq *trade Fire Safety,Gordon Brown Outdoor Education Centre,Supplies and Services Expenditure,162.90
05/09/2023,,LB of Brent,19/07/2023,Amznmktplace,Operational Costs - Facilities,Supplies and Services Expenditure,36.52
05/09/2023,,LB of Brent,19/07/2023,Amznmktplace,Brent Family Solutions,Supplies and Services Expenditure,9.98
05/09/2023,,LB of Brent,19/07/2023,Screwfix Dir Ltd,Gordon Brown Outdoor Education Centre,Supplies and Services Expenditure,8.32
05/09/2023,,LB of Brent,19/07/2023,London Overground Sst,Bridge Park Facilities,Supplies and Services Expenditure,13.40
05/09/2023,,LB of Brent,19/07/2023,Entrust Gbp,IT Operations,Supplies and Services Expenditure,628.57
05/09/2023,,LB of Brent,19/07/2023,Atlassian,Digital Comms,Supplies and Services Expenditure,9.49
05/09/2023,,LB of Brent,19/07/2023,Trainline,Housing Needs Housing Options Team,Supplies and Services Expenditure,59.69
05/09/2023,,LB of Brent,20/07/2023,Tesco Stores 2122,Short Break Centre,Supplies and Services Expenditure,169.29
05/09/2023,,LB of Brent,20/07/2023,Amznmktplace,IT Operations,Supplies and Services Expenditure,349.67
05/09/2023,,LB of Brent,20/07/2023,Amznmktplace,Heritage,Arts and Leisure Services,40.96
05/09/2023,,LB of Brent,20/07/2023,Furniture@work Ltd,Leaving Care Team A,Furniture and Soft Furnishings,128.00
05/09/2023,,LB of Brent,20/07/2023,Prezzee/Gb5b82f668,Brent Family Solutions,Supplies and Services Expenditure,30.00
05/09/2023,,LB of Brent,20/07/2023,Amazon.Co.Uk,Brent Family Solutions,Supplies and Services Expenditure,46.00
05/09/2023,,LB of Brent,20/07/2023,Prezzee/Gb903b9a46,Brent Family Solutions,Supplies and Services Expenditure,50.00
05/09/2023,,LB of Brent,20/07/2023,Thekingsferry.Couk,Brent Family Solutions,Supplies and Services Expenditure,"7,250.00"
05/09/2023,,LB of Brent,20/07/2023,Amznmktplace,Gordon Brown Outdoor Education Centre,Supplies and Services Expenditure,48.98
05/09/2023,,LB of Brent,20/07/2023,Amznmktplace,Corporate Communications Unit,Supplies and Services Expenditure,18.95
05/09/2023,,LB of Brent,20/07/2023,Amznmktplace,Housing Stakeholder Management,Supplies and Services Expenditure,111.94
05/09/2023,,LB of Brent,28/06/2023,B & Q 1071,NAIL Property Management,Supplies and Services Expenditure,16.67
05/09/2023,,LB of Brent,19/07/2023,Www.Preservationequipm,Heritage,Arts and Leisure Services,183.92
05/09/2023,,LB of Brent,21/07/2023,Az Toolz And Locks,TA Property Management,Supplies and Services Expenditure,3.00
05/09/2023,,LB of Brent,21/07/2023,British Gas Online,NAIL Property Management,Supplies and Services Expenditure,82.50
05/09/2023,,LB of Brent,21/07/2023,British Gas Online,Asset Compliance Team,Supplies and Services Expenditure,82.50
05/09/2023,,LB of Brent,21/07/2023,British Gas Online,NAIL Property Management,Supplies and Services Expenditure,82.50
05/09/2023,,LB of Brent,21/07/2023,British Gas Online,NAIL Property Management,Supplies and Services Expenditure,82.50
05/09/2023,,LB of Brent,21/07/2023,British Gas Online,TA Property Management,Supplies and Services Expenditure,94.29
05/09/2023,,LB of Brent,21/07/2023,British Gas Online,NAIL Property Management,Supplies and Services Expenditure,82.50
05/09/2023,,LB of Brent,21/07/2023,Hse - Bsr,Asset Compliance Team,Supplies and Services Expenditure,209.17
05/09/2023,,LB of Brent,21/07/2023,Amznmktplace,Bridge Park Facilities,Supplies and Services Expenditure,67.04
05/09/2023,,LB of Brent,21/07/2023,Www.Argos.Co.Uk,Housing Stakeholder Management,Stationery,86.67
05/09/2023,,LB of Brent,21/07/2023,Travelodge Gb0000,Housing Needs Accommodation Team,Supplies and Services Expenditure,691.45
05/09/2023,,LB of Brent,21/07/2023,Travelodge Gb0000,Housing Needs Accommodation Team,Supplies and Services Expenditure,691.45
05/09/2023,,LB of Brent,21/07/2023,Paypal,Heritage,Arts and Leisure Services,28.49
05/09/2023,,LB of Brent,21/07/2023,Trainline,Housing Needs Housing Options Team,Supplies and Services Expenditure,67.89
05/09/2023,,LB of Brent,22/07/2023,Zoom.Us 888-799-9666,Brent Music Service,Supplies and Services Expenditure,562.85
05/09/2023,,LB of Brent,22/07/2023,1password,IT Operations,Supplies and Services Expenditure,5.42
05/09/2023,,LB of Brent,23/07/2023,Tesco Stores 2122,Short Break Centre,Supplies and Services Expenditure,145.26
05/09/2023,,LB of Brent,23/07/2023,Amznmktplace,Leaving Care Team A,Stationery,91.66
05/09/2023,,LB of Brent,23/07/2023,Facebk N2hyrrxhq2,Other Grant Funding,Supplies and Services Expenditure,64.33
05/09/2023,,LB of Brent,23/07/2023,Facebk N2hyrrxhq2,Climate Emergency Budget,Supplies and Services Expenditure,50.00
05/09/2023,,LB of Brent,23/07/2023,Facebk N2hyrrxhq2,Major Projects - Staples Corner Masterplan,Supplies and Services Expenditure,179.96
05/09/2023,,LB of Brent,24/07/2023,Amazon.Co.Uk,Customer Access Improvement and Performance,Stationery,28.73
05/09/2023,,LB of Brent,21/07/2023,Scottish Power,NAIL Property Management,Supplies and Services Expenditure,83.33
05/09/2023,,LB of Brent,21/07/2023,Scottish Power,NAIL Property Management,Supplies and Services Expenditure,83.33
05/09/2023,,LB of Brent,21/07/2023,Scottish Power,NAIL Property Management,Supplies and Services Expenditure,83.33
05/09/2023,,LB of Brent,21/07/2023,Scottish Power,NAIL Property Management,Supplies and Services Expenditure,83.33
05/09/2023,,LB of Brent,23/07/2023,British Gas Online,TA Property Management,Supplies and Services Expenditure,94.29
05/09/2023,,LB of Brent,23/07/2023,British Gas Online,TA Property Management,Supplies and Services Expenditure,94.29
05/09/2023,,LB of Brent,23/07/2023,British Gas Online,NAIL Property Management,Supplies and Services Expenditure,82.50
05/09/2023,,LB of Brent,23/07/2023,British Gas Online,NAIL Property Management,Supplies and Services Expenditure,82.50
05/09/2023,,LB of Brent,23/07/2023,British Gas Online,TA Property Management,Supplies and Services Expenditure,94.29
05/09/2023,,LB of Brent,24/07/2023,Asda Groceries Online,Willows Nursery,Supplies and Services Expenditure,-16.75
05/09/2023,,LB of Brent,24/07/2023,Asda Groceries Online,Willows Nursery,Supplies and Services Expenditure,68.40
05/09/2023,,LB of Brent,24/07/2023,Hotjar,Digital Comms,Supplies and Services Expenditure,84.71
05/09/2023,,LB of Brent,24/07/2023,Costco Wholesale #128,Wembley Learning Zone,Supplies and Services Expenditure,33.99
05/09/2023,,LB of Brent,24/07/2023,Costco Wholesale #128,Wembley Learning Zone,Supplies and Services Expenditure,66.56
05/09/2023,,LB of Brent,24/07/2023,Amznmktplace,Brent Family Solutions,Supplies and Services Expenditure,72.36
05/09/2023,,LB of Brent,25/07/2023,Amznmktplace,Short Break Centre,Supplies and Services Expenditure,14.98
05/09/2023,,LB of Brent,25/07/2023,Jj Food Service - Basi,Gordon Brown Outdoor Education Centre,Supplies and Services Expenditure,25.58
05/09/2023,,LB of Brent,25/07/2023,Amazon.Co.Uk,Quality and Business Rates,Stationery,17.99
05/09/2023,,LB of Brent,25/07/2023,Amznmktplace,Community Hubs,Stationery,33.98
05/09/2023,,LB of Brent,25/07/2023,The Society Of Local Auth,Transformation Director,Stationery,250.00
05/09/2023,,LB of Brent,25/07/2023,Trainline,Single Homelessness Team,Supplies and Services Expenditure,69.15
05/09/2023,,LB of Brent,25/07/2023,Sainsburys S/Mkts,Public Health Operational,Supplies and Services Expenditure,1.10
05/09/2023,,LB of Brent,25/07/2023,Sainsburys S/Mkts,Public Health Operational,Supplies and Services Expenditure,3.95
05/09/2023,,LB of Brent,25/07/2023,Wm Morrisons Store,Public Health Operational,Supplies and Services Expenditure,14.78
05/09/2023,,LB of Brent,25/07/2023,Asda Groceries Online,Willows Nursery,Supplies and Services Expenditure,-12.25
05/09/2023,,LB of Brent,25/07/2023,Asda Groceries Online,Willows Nursery,Supplies and Services Expenditure,41.10
05/09/2023,,LB of Brent,25/07/2023,Amznmktplace,Quality and Business Rates,Stationery,11.82
05/09/2023,,LB of Brent,25/07/2023,High Street Vouchers,ICP Transformation Team,Supplies and Services Expenditure,279.25
05/09/2023,,LB of Brent,26/07/2023,Amznmktplace,Quality and Business Rates,Stationery,14.19
05/09/2023,,LB of Brent,26/07/2023,Amznmktplace,Civic Centre Conference and Events,Stationery,23.26
05/09/2023,,LB of Brent,26/07/2023,Amznmktplace,Development Control,Stationery,7.07
05/09/2023,,LB of Brent,26/07/2023,Amznmktplace,Short Break Centre,Supplies and Services Expenditure,11.99
05/09/2023,,LB of Brent,26/07/2023,Tesco Store 2670,Gordon Brown Outdoor Education Centre,Supplies and Services Expenditure,30.26
05/09/2023,,LB of Brent,26/07/2023,Amznmktplace,Customer Access Improvement and Performance,Stationery,134.00
05/09/2023,,LB of Brent,26/07/2023,Hmctslondoncse077,Debt and Income,Supplies and Services Expenditure,698.00
05/09/2023,,LB of Brent,26/07/2023,Wly,Willows Nursery,Supplies and Services Expenditure,15.00
05/09/2023,,LB of Brent,26/07/2023,Miro.Com,IT Operations,Supplies and Services Expenditure,385.82
05/09/2023,,LB of Brent,26/07/2023,Sainsburys Wembley,Wembley Learning Zone,Supplies and Services Expenditure,19.95
05/09/2023,,LB of Brent,26/07/2023,Prezzee/Gbfc0739f2,Brent Family Solutions,Supplies and Services Expenditure,15.00
05/09/2023,,LB of Brent,26/07/2023,Lul Ticket Machine,Brent Family Solutions,Supplies and Services Expenditure,15.00
05/09/2023,,LB of Brent,26/07/2023,Amznmktplace,Brent Family Solutions,Supplies and Services Expenditure,21.03
05/09/2023,,LB of Brent,26/07/2023,Lul Ticket Machine,Brent Family Solutions,Supplies and Services Expenditure,30.00
05/09/2023,,LB of Brent,26/07/2023,Lul Ticket Machine,Brent Family Solutions,Supplies and Services Expenditure,50.00
05/09/2023,,LB of Brent,26/07/2023,Plonk Golf,Brent Family Solutions,Supplies and Services Expenditure,55.00
05/09/2023,,LB of Brent,26/07/2023,Sq *meetspacevr - Wembley,Brent Family Solutions,Supplies and Services Expenditure,150.00
05/09/2023,,LB of Brent,27/07/2023,Amznmktplace,Customer Access Improvement and Performance,Stationery,3.98
05/09/2023,,LB of Brent,27/07/2023,Amznmktplace,Brent Family Solutions,Supplies and Services Expenditure,16.98
05/09/2023,,LB of Brent,26/07/2023,Iceland Foods,Residential and Nursing Team,Supplies and Services Expenditure,43.28
05/09/2023,,LB of Brent,26/07/2023,Brent Council,Parish Liaison,Financial Services,22.00
05/09/2023,,LB of Brent,27/07/2023,Tesco Stores 2122,Short Break Centre,Supplies and Services Expenditure,57.97
05/09/2023,,LB of Brent,27/07/2023,Wickes Hanger Lane,Bridge Park Facilities,Supplies and Services Expenditure,41.67
05/09/2023,,LB of Brent,27/07/2023,Amz*phixero Uk,Quality and Business Rates,Stationery,-9.99
05/09/2023,,LB of Brent,27/07/2023,Amznmktplace,Customer Access Improvement and Performance,Stationery,139.98
05/09/2023,,LB of Brent,27/07/2023,Amznmktplace,Parish Liaison,Stationery,25.82
05/09/2023,,LB of Brent,27/07/2023,Amznmktplace,IT Operations,Supplies and Services Expenditure,41.66
05/09/2023,,LB of Brent,27/07/2023,Amznmktplace,Development Control,Stationery,5.37
05/09/2023,,LB of Brent,27/07/2023,Amznmktplace,Brent Family Solutions,Supplies and Services Expenditure,33.50
05/09/2023,,LB of Brent,27/07/2023,Prezzee/Gb0631e3a3,Brent Family Solutions,Supplies and Services Expenditure,50.00
05/09/2023,,LB of Brent,28/07/2023,Amznmktplace,Legal Support,Stationery,46.06
05/09/2023,,LB of Brent,28/07/2023,Everyone Active-Dom,Brent Family Solutions,Supplies and Services Expenditure,96.00
05/09/2023,,LB of Brent,28/07/2023,Westfieldboulderingpro,Brent Family Solutions,Supplies and Services Expenditure,140.00
05/09/2023,,LB of Brent,29/07/2023,Tesco Store 2670,Gordon Brown Outdoor Education Centre,Supplies and Services Expenditure,33.79
05/09/2023,,LB of Brent,29/07/2023,Sainsburys Supermarket,Gordon Brown Outdoor Education Centre,Supplies and Services Expenditure,85.12
05/09/2023,,LB of Brent,30/07/2023,Amznmktplace,Reablement - Hdt Operational,Supplies and Services Expenditure,8.52
05/09/2023,,LB of Brent,30/07/2023,Tesco Stores 2122,Short Break Centre,Supplies and Services Expenditure,95.38
05/09/2023,,LB of Brent,30/07/2023,Canva* I03862-12300717,Bridge Park Facilities,Supplies and Services Expenditure,83.32
05/09/2023,,LB of Brent,30/07/2023,Amznmktplace,Legal Support,Stationery,39.19
05/09/2023,,LB of Brent,30/07/2023,Amazon.Co.Uk,Resident Services Corporate Director,Stationery,112.26
05/09/2023,,LB of Brent,31/07/2023,Amznmktplace,Customer Access Improvement and Performance,Stationery,89.98
05/09/2023,,LB of Brent,28/07/2023,Tfl Roadchg Stdautopay,Building Cleaning,Supplies and Services Expenditure,791.67
05/09/2023,,LB of Brent,31/07/2023,Amznmktplace,Legal Support,Stationery,18.90
05/09/2023,,LB of Brent,31/07/2023,Travelodge Gb0000,Housing Needs Accommodation Team,Supplies and Services Expenditure,891.36
05/09/2023,,LB of Brent,31/07/2023,Travelodge Gb0000,Housing Needs Accommodation Team,Supplies and Services Expenditure,970.89
05/09/2023,,LB of Brent,31/07/2023,Hmctslondoncse077,Debt and Income,Supplies and Services Expenditure,66.00
05/09/2023,,LB of Brent,31/07/2023,Asda Groceries Online,Willows Nursery,Supplies and Services Expenditure,-0.12
05/09/2023,,LB of Brent,31/07/2023,Asda Groceries Online,Willows Nursery,Supplies and Services Expenditure,6.50
05/09/2023,,LB of Brent,31/07/2023,Asda Groceries Online,Willows Nursery,Supplies and Services Expenditure,65.28
05/09/2023,,LB of Brent,31/07/2023,Amznmktplace,Alternative Education - Management,Supplies and Services Expenditure,28.35
05/09/2023,,LB of Brent,31/07/2023,Amznmktplace,IT Operations,Supplies and Services Expenditure,8.25
05/09/2023,,LB of Brent,31/07/2023,Prezzee/Gb62f9b962,Brent Family Solutions,Supplies and Services Expenditure,25.00
05/09/2023,,LB of Brent,31/07/2023,Lul Ticket Machine,Brent Family Solutions,Supplies and Services Expenditure,50.00
05/09/2023,,LB of Brent,31/07/2023,Lul Ticket Machine,Brent Family Solutions,Supplies and Services Expenditure,50.00
05/09/2023,,LB of Brent,31/07/2023,Www.Papajohn S.Co.Uk,Brent Family Solutions,Supplies and Services Expenditure,131.43
05/09/2023,,LB of Brent,01/08/2023,Amznmktplace,Brent Family Solutions,Supplies and Services Expenditure,123.64
05/09/2023,,LB of Brent,01/08/2023,Amznmktplace,Short Break Centre,Supplies and Services Expenditure,17.98
05/09/2023,,LB of Brent,01/08/2023,Amznmktplace,Short Break Centre,Supplies and Services Expenditure,38.90
05/09/2023,,LB of Brent,01/08/2023,Bkg*hotel At Booking.C,Smart Team,Supplies and Services Expenditure,67.50
05/09/2023,,LB of Brent,01/08/2023,British Gas Online,NAIL Property Management,Supplies and Services Expenditure,82.50
05/09/2023,,LB of Brent,01/08/2023,Gsuite_bmsstaff.Com,Brent Music Service,Supplies and Services Expenditure,92.00
05/09/2023,,LB of Brent,01/08/2023,Amznmktplace,Parish Liaison,Stationery,57.83
05/09/2023,,LB of Brent,01/08/2023,Flickr Pro Monthly,Digital Comms,Supplies and Services Expenditure,6.99
05/09/2023,,LB of Brent,01/08/2023,Www.Johnlewis.Com,Registration and Nationality Service,Supplies and Services Expenditure,124.96
05/09/2023,,LB of Brent,01/08/2023,Eb *are You Prepared F,Food Safety,Supplies and Services Expenditure,15.00
05/09/2023,,LB of Brent,01/08/2023,Prezzee/Gb81949c4b,Brent Family Solutions,Supplies and Services Expenditure,40.00
05/09/2023,,LB of Brent,01/08/2023,Prezzee/Gb9a21a0ba,Brent Family Solutions,Supplies and Services Expenditure,50.00
05/09/2023,,LB of Brent,01/08/2023,Prezzee/Gbbbe60d3c,Brent Family Solutions,Supplies and Services Expenditure,50.00
05/09/2023,,LB of Brent,01/08/2023,Prezzee/Gbf03382b6,Brent Family Solutions,Supplies and Services Expenditure,50.00
05/09/2023,,LB of Brent,01/08/2023,Prezzee/Gbfc8e839e,Brent Family Solutions,Supplies and Services Expenditure,50.00
05/09/2023,,LB of Brent,01/08/2023,Amznmktplace,Brent Family Solutions,Supplies and Services Expenditure,63.99
05/09/2023,,LB of Brent,01/08/2023,Tesco Stores 6568,Brent Family Solutions,Supplies and Services Expenditure,100.00
05/09/2023,,LB of Brent,01/08/2023,Amznmktplace,Brent Family Solutions,Supplies and Services Expenditure,114.68
05/09/2023,,LB of Brent,01/08/2023,Tesco Stores 6568,Brent Family Solutions,Supplies and Services Expenditure,150.00
05/09/2023,,LB of Brent,01/08/2023,Linkedin Ads 9283836114,Core Finance,Supplies and Services Expenditure,108.36
05/09/2023,,LB of Brent,02/08/2023,Amznmktplace,Civic Centre - Av,Stationery,111.96
05/09/2023,,LB of Brent,02/08/2023,Amazon.Co.Uk,Infant Feeding,Stationery,119.02
05/09/2023,,LB of Brent,02/08/2023,Msft * E0600oe0ua,IT Operations,Supplies and Services Expenditure,5.40
05/09/2023,,LB of Brent,02/08/2023,Tesco Stores 2122,Short Break Centre,Supplies and Services Expenditure,102.48
05/09/2023,,LB of Brent,02/08/2023,Amznmktplace,NAIL Property Management,Supplies and Services Expenditure,19.16
05/09/2023,,LB of Brent,02/08/2023,Health And Care,NAIL Property Management,Supplies and Services Expenditure,143.32
05/09/2023,,LB of Brent,02/08/2023,Currys Online,NAIL Property Management,Supplies and Services Expenditure,382.50
05/09/2023,,LB of Brent,02/08/2023,Amznmktplace,Single Homelessness Team,Stationery,87.90
05/09/2023,,LB of Brent,02/08/2023,Travelodge Gb0000,Housing Needs Accommodation Team,Supplies and Services Expenditure,758.78
05/09/2023,,LB of Brent,02/08/2023,Travelodge Gb0000,Housing Needs Accommodation Team,Supplies and Services Expenditure,761.28
05/09/2023,,LB of Brent,02/08/2023,Sli Do,Training Costs - Learning and Staff Development,Supplies and Services Expenditure,144.00
05/09/2023,,LB of Brent,02/08/2023,Asda Superstore 04881,Willows Nursery,Supplies and Services Expenditure,4.20
05/09/2023,,LB of Brent,02/08/2023,Amazon Prime,Willows Nursery,Supplies and Services Expenditure,7.49
05/09/2023,,LB of Brent,02/08/2023,Lidl Gb London,Willows Nursery,Supplies and Services Expenditure,12.97
05/09/2023,,LB of Brent,02/08/2023,Sainsburys S/Mkts,Emergency Planning,Catering,3.96
05/09/2023,,LB of Brent,02/08/2023,Sainsburys S/Mkts,Emergency Planning,Catering,8.00
05/09/2023,,LB of Brent,02/08/2023,Domino S Pizza,Emergency Planning,Catering,70.35
05/09/2023,,LB of Brent,02/08/2023,Travelodge Gb0000,Emergency Planning,Facilities and Management Services,88.38
05/09/2023,,LB of Brent,02/08/2023,Bkg*hotel At Booking.C,Emergency Planning,Facilities and Management Services,157.50
05/09/2023,,LB of Brent,02/08/2023,Travelodge Gb0000,Emergency Planning,Facilities and Management Services,274.01
05/09/2023,,LB of Brent,02/08/2023,Amznmktplace,Gordon Brown Outdoor Education Centre,Supplies and Services Expenditure,30.68
05/09/2023,,LB of Brent,03/08/2023,Amznmktplace,Single Homelessness Team,Stationery,26.20
05/09/2023,,LB of Brent,02/08/2023,Brent Council,Afghan Resettlement Scheme,Financial Services,"2,014.45"
05/09/2023,,LB of Brent,02/08/2023,St Georges Hotel Wembl,Emergency Planning,Facilities and Management Services,85.83
05/09/2023,,LB of Brent,03/08/2023,Amznmktplace,Single Homelessness Team,Stationery,53.99
05/09/2023,,LB of Brent,03/08/2023,Amznmktplace,Single Homelessness Team,Stationery,69.99
05/09/2023,,LB of Brent,03/08/2023,Amznmktplace,Single Homelessness Team,Stationery,88.99
05/09/2023,,LB of Brent,03/08/2023,Amznmktplace,Single Homelessness Team,Stationery,119.98
05/09/2023,,LB of Brent,03/08/2023,Travelodge Gb0000,Housing Needs Accommodation Team,Supplies and Services Expenditure,68.32
05/09/2023,,LB of Brent,03/08/2023,Tesco Stores 6186,ICP Transformation Team,Supplies and Services Expenditure,2.93
05/09/2023,,LB of Brent,03/08/2023,Nhs Confederation,ICP Transformation Team,Supplies and Services Expenditure,118.80
05/09/2023,,LB of Brent,04/08/2023,Amznmktplace,Reablement - Hdt Operational,Supplies and Services Expenditure,11.68
05/09/2023,,LB of Brent,04/08/2023,Amznmktplace,Reablement - Hdt Operational,Supplies and Services Expenditure,24.36
05/09/2023,,LB of Brent,04/08/2023,Asda Superstore,Short Break Centre,Supplies and Services Expenditure,44.50
05/09/2023,,LB of Brent,04/08/2023,Matalan,Short Break Centre,Supplies and Services Expenditure,60.00
05/09/2023,,LB of Brent,04/08/2023,Shell Willesden,Estate Cleaning Team,Supplies and Services Expenditure,19.58
05/09/2023,,LB of Brent,04/08/2023,Shell Kilburn,Estate Cleaning Team,Supplies and Services Expenditure,20.01
05/09/2023,,LB of Brent,04/08/2023,Az Toolz And Locks,TA Property Management,Supplies and Services Expenditure,10.50
05/09/2023,,LB of Brent,04/08/2023,B & Q 1226,Bridge Park Facilities,Supplies and Services Expenditure,53.62
05/09/2023,,LB of Brent,04/08/2023,Amznmktplace,Income Control Team,Stationery,36.27
05/09/2023,,LB of Brent,05/08/2023,Tesco Stores 2122,Short Break Centre,Supplies and Services Expenditure,149.87
05/09/2023,,LB of Brent,05/08/2023,Travelodge Gb0000,Emergency Planning,Facilities and Management Services,367.16
05/09/2023,,LB of Brent,06/08/2023,Amznmktplace,Short Break Centre,Supplies and Services Expenditure,47.73
05/09/2023,,LB of Brent,06/08/2023,Amznmktplace,Income Control Team,Stationery,15.92
05/09/2023,,LB of Brent,06/08/2023,Amznmktplace,Brent Family Solutions,Supplies and Services Expenditure,208.37
05/09/2023,,LB of Brent,07/08/2023,Tesco Stores 2122,Smart Team,Supplies and Services Expenditure,14.90
05/09/2023,,LB of Brent,07/08/2023,Amazon Prime,Brent Sicts,Supplies and Services Expenditure,7.49
05/09/2023,,LB of Brent,07/08/2023,Find A Will,Legal Support,Legal Services,1.50
05/09/2023,,LB of Brent,07/08/2023,Calendly,Member Development,Financial Services,48.71
05/09/2023,,LB of Brent,07/08/2023,Asda Groceries Online,Willows Nursery,Supplies and Services Expenditure,-7.61
05/09/2023,,LB of Brent,07/08/2023,Asda Groceries Online,Willows Nursery,Supplies and Services Expenditure,86.64
05/09/2023,,LB of Brent,07/08/2023,Nisbets Ltd,Gordon Brown Outdoor Education Centre,Supplies and Services Expenditure,239.98
05/09/2023,,LB of Brent,07/08/2023,Travelodge Gb0000,Housing Needs Housing Options Team,Supplies and Services Expenditure,96.37
05/09/2023,,LB of Brent,07/08/2023,Brent Council,Parish Liaison,Financial Services,11.00
05/09/2023,,LB of Brent,08/08/2023,Bkg*hotel At Booking.C,Smart Team,Supplies and Services Expenditure,401.63
05/09/2023,,LB of Brent,08/08/2023,British Gas Online,NAIL Property Management,Supplies and Services Expenditure,82.50
05/09/2023,,LB of Brent,08/08/2023,British Gas Online,NAIL Property Management,Supplies and Services Expenditure,82.50
05/09/2023,,LB of Brent,08/08/2023,British Gas Online,NAIL Property Management,Supplies and Services Expenditure,82.50
05/09/2023,,LB of Brent,08/08/2023,British Gas Online,NAIL Property Management,Supplies and Services Expenditure,82.50
05/09/2023,,LB of Brent,08/08/2023,Nisbets Ltd,TA Property Management,Supplies and Services Expenditure,449.87
05/09/2023,,LB of Brent,08/08/2023,Asda Superstore 04881,Willows Nursery,Supplies and Services Expenditure,22.94
05/09/2023,,LB of Brent,08/08/2023,Amazon Prime,Childrens Social Care Business Support,Supplies and Services Expenditure,7.49
05/09/2023,,LB of Brent,08/08/2023,Wilton Wholefoods,Gordon Brown Outdoor Education Centre,Supplies and Services Expenditure,40.57
05/09/2023,,LB of Brent,08/08/2023,Trainline.Com,Housing Needs Housing Options Team,Supplies and Services Expenditure,86.69
05/09/2023,,LB of Brent,09/08/2023,Amznmktplace,East Long-Term Team 5,Supplies and Services Expenditure,10.99
05/09/2023,,LB of Brent,09/08/2023,Sumup *natalie Delsol,Bridge Park Facilities,Supplies and Services Expenditure,150.00
05/09/2023,,LB of Brent,09/08/2023,Posturite Ltd,Customer Access Improvement and Performance,Stationery,346.11
05/09/2023,,LB of Brent,09/08/2023,Back Care Solutions,Community Hubs,Stationery,594.99
05/09/2023,,LB of Brent,09/08/2023,Back Care Solutions,Community Hubs,Stationery,"3,489.88"
05/09/2023,,LB of Brent,09/08/2023,Travelodge Gb0000,Housing Needs Accommodation Team,Supplies and Services Expenditure,153.99
05/09/2023,,LB of Brent,09/08/2023,Travelodge Gb0000,Housing Needs Accommodation Team,Supplies and Services Expenditure,979.63
05/09/2023,,LB of Brent,09/08/2023,Brent Parking,Parish Liaison,Financial Services,4.17
05/09/2023,,LB of Brent,09/08/2023,Amznmktplace,Brent Family Solutions,Supplies and Services Expenditure,9.88
05/09/2023,,LB of Brent,09/08/2023,Amazon.Co.Uk,Brent Family Solutions,Supplies and Services Expenditure,18.24
05/09/2023,,LB of Brent,09/08/2023,Amazon.Co.Uk,Brent Family Solutions,Supplies and Services Expenditure,18.24
05/09/2023,,LB of Brent,09/08/2023,Amazon.Co.Uk,Brent Family Solutions,Supplies and Services Expenditure,18.24
05/09/2023,,LB of Brent,09/08/2023,Amazon.Co.Uk,Brent Family Solutions,Supplies and Services Expenditure,18.24
05/09/2023,,LB of Brent,09/08/2023,Amazon.Co.Uk,Brent Family Solutions,Supplies and Services Expenditure,18.24
05/09/2023,,LB of Brent,09/08/2023,Amazon.Co.Uk,Brent Family Solutions,Supplies and Services Expenditure,18.24
05/09/2023,,LB of Brent,09/08/2023,Amazon.Co.Uk,Brent Family Solutions,Supplies and Services Expenditure,18.24
05/09/2023,,LB of Brent,09/08/2023,Amznmktplace,Brent Family Solutions,Supplies and Services Expenditure,25.54
05/09/2023,,LB of Brent,09/08/2023,Slurp Pop N Candy,Brent Family Solutions,Supplies and Services Expenditure,115.00
05/09/2023,,LB of Brent,10/08/2023,Amznmktplace,NAIL Property Management,Supplies and Services Expenditure,20.81
05/09/2023,,LB of Brent,10/08/2023,Companieshouse Web Filing,Lga IT Shared Service,Financial Services,13.00
05/09/2023,,LB of Brent,10/08/2023,Www.Therange.Co.Uk,Climate Emergency Budget,Stationery,57.88
05/09/2023,,LB of Brent,10/08/2023,Posturite Ltd,Accounts Payable,Stationery,-62.96
05/09/2023,,LB of Brent,10/08/2023,Www.Therange.Co.Uk,Climate Emergency Budget,Stationery,103.13
05/09/2023,,LB of Brent,10/08/2023,Www.Therange.Co.Uk,Climate Emergency Budget,Stationery,104.49
05/09/2023,,LB of Brent,10/08/2023,Www.Therange.Co.Uk,Climate Emergency Budget,Stationery,107.47
05/09/2023,,LB of Brent,10/08/2023,Amznmktplace,Community Hubs,Stationery,273.73
05/09/2023,,LB of Brent,10/08/2023,Www.Therange.Co.Uk,Climate Emergency Budget,Stationery,272.05
05/09/2023,,LB of Brent,10/08/2023,B&q Ltd,Climate Emergency Budget,Stationery,684.63
05/09/2023,,LB of Brent,10/08/2023,Ikea Ltd Shop Online,Climate Emergency Budget,Stationery,790.83
05/09/2023,,LB of Brent,10/08/2023,Brent Parking,Parish Liaison,Financial Services,1.83
05/09/2023,,LB of Brent,10/08/2023,Brent Parking,Parish Liaison,Financial Services,1.83
05/09/2023,,LB of Brent,10/08/2023,Ebay O*01-10401-25143,Afghan Resettlement Scheme,Social Community Care Supplies and Services - Adult,39.08
05/09/2023,,LB of Brent,10/08/2023,Www.Argos.Co.Uk,Afghan Resettlement Scheme,Social Community Care Supplies and Services - Adult,44.12
05/09/2023,,LB of Brent,10/08/2023,Www.Argos.Co.Uk,Afghan Resettlement Scheme,Social Community Care Supplies and Services - Adult,50.00
05/09/2023,,LB of Brent,10/08/2023,Ebay O*01-10401-25142,Afghan Resettlement Scheme,Social Community Care Supplies and Services - Adult,54.99
05/09/2023,,LB of Brent,10/08/2023,Ebay O*01-10401-25141,Afghan Resettlement Scheme,Social Community Care Supplies and Services - Adult,60.83
05/09/2023,,LB of Brent,10/08/2023,Zettle_*quick Pest Con,Afghan Resettlement Scheme,Social Community Care Supplies and Services - Adult,480.00
05/09/2023,,LB of Brent,11/08/2023,Amazon.Co.Uk,Climate Emergency Budget,Stationery,86.79
05/09/2023,,LB of Brent,10/08/2023,Schoolhire* B1507223,Policy Partnerships & Scrutiny,Human Resources - Training and Conferences,80.00
05/09/2023,,LB of Brent,11/08/2023,Amznmktplace,Community Hubs,Stationery,159.00
05/09/2023,,LB of Brent,14/08/2023,Amznmktplace,Afghan Resettlement Scheme,Social Community Care Supplies and Services - Adult,251.92
05/09/2023,,LB of Brent,14/08/2023,Amznmktplace,Afghan Resettlement Scheme,Social Community Care Supplies and Services - Adult,216.64
05/09/2023,,LB of Brent,15/08/2023,Amznmktplace,Customer Access Improvement and Performance,Stationery,3.98
05/09/2023,,LB of Brent,15/08/2023,Amznmktplace,Customer Access Improvement and Performance,Stationery,3.98
05/09/2023,,LB of Brent,15/08/2023,Amznmktplace,Cemeteries Admin,Stationery,7.98
05/09/2023,,LB of Brent,15/08/2023,Amznmktplace,Cemeteries Admin,Stationery,23.59
05/09/2023,,LB of Brent,15/08/2023,Amznmktplace,Hr Operational,Stationery,12.95
05/09/2023,,LB of Brent,15/08/2023,Amznmktplace,Hr Operational,Stationery,26.98
05/09/2023,,LB of Brent,15/08/2023,Amznmktplace,Customer Access Improvement and Performance,Stationery,134.00
05/09/2023,,LB of Brent,15/08/2023,Amznmktplace,Customer Access Improvement and Performance,Stationery,134.00
05/09/2023,,LB of Brent,15/08/2023,Travelodge Gb0000,Neighbourhood Services - Estate Services,Human Resources - Training and Conferences,143.29
05/09/2023,,LB of Brent,16/08/2023,Amznmktplace,Customer Access Improvement and Performance,Stationery,139.98
05/09/2023,,LB of Brent,16/08/2023,Amznmktplace,Customer Access Improvement and Performance,Stationery,139.98
05/09/2023,,LB of Brent,15/08/2023,Brent Council,Parish Liaison,Financial Services,11.00
05/09/2023,,LB of Brent,16/08/2023,Amznmktplace,Customer Access Improvement and Performance,Stationery,3.98
05/09/2023,,LB of Brent,16/08/2023,Www.Argos.Co.Uk,Climate Emergency Budget,Stationery,54.00
05/09/2023,,LB of Brent,16/08/2023,Amznmktplace,Hr Operational,Stationery,56.99
05/09/2023,,LB of Brent,16/08/2023,Amznmktplace,Customer Access Improvement and Performance,Stationery,134.00
05/09/2023,,LB of Brent,16/08/2023,Brent Parking,Parish Liaison,Financial Services,3.50
05/09/2023,,LB of Brent,16/08/2023,Amznmktplace,Afghan Resettlement Scheme,Social Community Care Supplies and Services - Adult,43.33
05/09/2023,,LB of Brent,17/08/2023,Amznmktplace,Cemeteries Admin,Stationery,23.59
05/09/2023,,LB of Brent,17/08/2023,Amz*component Shop,Customer Access Improvement and Performance,Stationery,-224.92
05/09/2023,,LB of Brent,17/08/2023,Westminster Insight,Housing Partnerships Service,Human Resources - Training and Conferences,"1,076.40"
05/09/2023,,LB of Brent,17/08/2023,Thriiver Limited,Political Group Support,Stationery,"2,000.00"
05/09/2023,,LB of Brent,17/08/2023,Ace Clothing Company,Afghan Resettlement Scheme,Social Community Care Supplies and Services - Children,333.65
05/09/2023,,LB of Brent,18/08/2023,Amznmktplace,Single Homelessness Team,Stationery,16.99
05/09/2023,,LB of Brent,18/08/2023,Amznmktplace,Single Homelessness Team,Stationery,19.99
05/09/2023,,LB of Brent,18/08/2023,Amznmktplace,Single Homelessness Team,Stationery,59.99
05/09/2023,,LB of Brent,18/08/2023,Speedy Sameday Courier,Information Governance,Mail Services,62.65
05/09/2023,,LB of Brent,18/08/2023,Amazon* 202-7889328-10,ICT Client and Applications Support,Stationery,91.64
05/09/2023,,LB of Brent,19/08/2023,Amazon* 202-6909326-09,Transformation Team,Stationery,13.51
05/09/2023,,LB of Brent,19/08/2023,Amznmktplace,Single Homelessness Team,Stationery,33.98
05/09/2023,,LB of Brent,20/08/2023,Amznmktplace,Communities and Regeneration - Year End Financial Accounts,Stationery,24.86
05/09/2023,,LB of Brent,21/08/2023,Amznmktplace,Digital Post Room,Stationery,13.32
05/09/2023,,LB of Brent,22/08/2023,Amazon* 202-5781633-86,Trading Standards - Brent,Stationery,62.25
05/09/2023,,LB of Brent,22/08/2023,Marks&spencer Plc,Afghan Resettlement Scheme,Social Community Care Supplies and Services - Adult,22.92
05/09/2023,,LB of Brent,22/08/2023,Amznmktplace,Afghan Resettlement Scheme,Social Community Care Supplies and Services - Adult,143.30
05/09/2023,,LB of Brent,23/08/2023,Amazon* 202-2495509-99,Communities and Regeneration - Year End Financial Accounts,Stationery,12.21
05/09/2023,,LB of Brent,23/08/2023,Amazon* 202-0215667-73,Customer Access Improvement and Performance,Stationery,12.49
05/09/2023,,LB of Brent,23/08/2023,Amznmktplace,Income Control Team,Stationery,51.66
05/09/2023,,LB of Brent,25/08/2023,Amznmktplace,Transformation Director,Stationery,120.00
05/09/2023,,LB of Brent,25/08/2023,Amznmktplace,Customer Access Improvement and Performance,Stationery,129.98
05/09/2023,,LB of Brent,25/08/2023,Amznmktplace,Customer Access Improvement and Performance,Stationery,173.98
